Workbook

Sheet Steam Leak Est rev 8.1
B1: Inveno Engineering LLC. www.Invenoeng.com | R1: Pipe Diameter Reference
B2: Steam loss can be estimated using the following variant of Napier's formula:
D3: Steam Loss = 22.88 x Pa X D^2 | J3: Emissions Factors Used by Save Energy Now Program (CO2/MMBtu Primary), other emissions provided by USA EIA. | R3: Nominal Pipe Size | T3: OD (in) | U3: ID (in)
D4: 22.88 = constant | R4: Size | S4: Schedule
D5: Pa = Absolute Steam Pressure | R5: 1/8 | S5: STD | T5: 0.405 | U5: 0.269
D6: D = Diameter of leak | S6: XS | U6: 0.215
D7: Cost of Steam | E7: 2.5 | F7: $/1000lbs | G7: Add the steam cost per thousand lbs of steam
D8: Fuel type | E8: Natural Gas | H8: Drop down window for fuel selections | R8: 1/4 | S8: STD | T8: 0.54 | U8: 0.364
B11: Quick Calculation - User defined | S11: XS | U11: 0.302
B12: CELLS THAT CAN BE MODIFY | R12: 3/8 | S12: STD | T12: 0.675 | U12: 0.493
B13: Pressure | D13: Abs Pressure | E13: Constant | F13: Diameter | G13: D^2 | H13: Steam Loss (pph) | I13: Cost / Hour | J13: Days / Year | K13: Cost / Year | L13: CO2 Emissions / Year | M13: NOX | N13: SO2 | O13: Particulates | P13: Mercury | S13: XS | U13: 0.423
B14: 150 | D14: =B14+14.696 -> 164.696 | E14: 22.88 | F14: 0.5 | G14: =F14^2 -> 0.25 | H14: =D14*E14*G14 -> 942.06112 | I14: =(H14/1000)*E7 -> 2.3551528 | J14: 350 | K14: =I14*24*J14 -> 19783.28352 | L14: =((((VLOOKUP($B14,'Steam water pres table May-2009'!$B$4:$I$240,8,FALSE)*$H14)/1000000)*(VLOOKUP($E$8,'CO2 Conversion Factors'!$A$3:$G$23,3,FALSE)))*24)*$J14 -> 1107230.546 | M14: =((((VLOOKUP($B14,'Steam water pres table May-2009'!$B$4:$I$240,8,FALSE)*$H14)/1000000)*(VLOOKUP($E$8,'CO2 Conversion Factors'!$A$3:$G$23,4,FALSE)))*24)*$J14 -> 870.0479181 | N14: =((((VLOOKUP($B14,'Steam water pres table May-2009'!$B$4:$I$240,8,FALSE)*$H14)/1000000)*(VLOOKUP($E$8,'CO2 Conversion Factors'!$A$3:$G$23,5,FALSE)))*24)*$J14 -> 9457.042588 | O14: =((((VLOOKUP($B14,'Steam water pres table May-2009'!$B$4:$I$240,8,FALSE)*$H14)/1000000)*(VLOOKUP($E$8,'CO2 Conversion Factors'!$A$3:$G$23,6,FALSE)))*24)*$J14 -> 66199.29811 | P14: =((((VLOOKUP($B14,'Steam water pres table May-2009'!$B$4:$I$240,8,FALSE)*$H14)/1000000)*(VLOOKUP($E$8,'CO2 Conversion Factors'!$A$3:$G$23,7,FALSE)))*24)*$J14 -> 0 | R14: 1/2 | S14: STD | T14: 0.84 | U14: 0.622
S15: XS | U15: 0.546
B16: 1/16" Leak | S16: XXS | U16: 0.252
B17: Pressure | C17: Bar | D17: Abs Pressure | E17: Constant | F17: Diameter | G17: D^2 | H17: Steam Loss (pph) | I17: Cost / Hour | J17: Days / Year | K17: Cost / Year | L17: CO2 Emissions / Year | M17: NOX | N17: SO2 | O17: Particulates | P17: Mercury | R17: 3/4 | S17: STD | T17: 1.05 | U17: 0.824
B18: 5 | D18: =B18+14.696 -> 19.696 | E18: 22.88 | F18: =1/16 -> 0.0625 | G18: =F18^2 -> 0.00390625 | H18: =D18*E18*G18 -> 1.76033 | I18: =(H18/1000)*E$7 -> 0.004400825 | J18: 365 | K18: =I18*24*J18 -> 38.551227 | L18: =((((VLOOKUP($B18,'Steam water pres table May-2009'!$B$4:$I$240,8,FALSE)*$H18)/1000000)*(VLOOKUP($E$8,'CO2 Conversion Factors'!$A$3:$G$23,3,FALSE)))*24)*$J18 -> 2087.276906 | M18: =((((VLOOKUP($B18,'Steam water pres table May-2009'!$B$4:$I$240,8,FALSE)*$H18)/1000000)*(VLOOKUP($E$8,'CO2 Conversion Factors'!$A$3:$G$23,4,FALSE)))*24)*$J18 -> 1.640156093 | N18: =((((VLOOKUP($B18,'Steam water pres table May-2009'!$B$4:$I$240,8,FALSE)*$H18)/1000000)*(VLOOKUP($E$8,'CO2 Conversion Factors'!$A$3:$G$23,5,FALSE)))*24)*$J18 -> 17.82778362 | O18: =((((VLOOKUP($B18,'Steam water pres table May-2009'!$B$4:$I$240,8,FALSE)*$H18)/1000000)*(VLOOKUP($E$8,'CO2 Conversion Factors'!$A$3:$G$23,6,FALSE)))*24)*$J18 -> 124.7944853 | P18: =((((VLOOKUP($B18,'Steam water pres table May-2009'!$B$4:$I$240,8,FALSE)*$H18)/1000000)*(VLOOKUP($E$8,'CO2 Conversion Factors'!$A$3:$G$23,7,FALSE)))*24)*$J18 -> 0 | S18: XS | U18: 0.742 | Y18: 0.01 | Z18: 16897
B19: 15 | D19: 29.696 | E19: 22.88 | F19: 0.0625 | G19: =F19^2 -> 0.00390625 | H19: 2.65408 | I19: 0.0066352 | J19: 365 | K19: 58.124352 | L19: =((((VLOOKUP($B19,'Steam water pres table May-2009'!$B$4:$I$240,8,FALSE)*$H19)/1000000)*(VLOOKUP($E$8,'CO2 Conversion Factors'!$A$3:$G$23,3,FALSE)))*24)*$J19 -> 3168.963469 | M19: =((((VLOOKUP($B19,'Steam water pres table May-2009'!$B$4:$I$240,8,FALSE)*$H19)/1000000)*(VLOOKUP($E$8,'CO2 Conversion Factors'!$A$3:$G$23,4,FALSE)))*24)*$J19 -> 2.490131869 | N19: =((((VLOOKUP($B19,'Steam water pres table May-2009'!$B$4:$I$240,8,FALSE)*$H19)/1000000)*(VLOOKUP($E$8,'CO2 Conversion Factors'!$A$3:$G$23,5,FALSE)))*24)*$J19 -> 27.06665075 | O19: =((((VLOOKUP($B19,'Steam water pres table May-2009'!$B$4:$I$240,8,FALSE)*$H19)/1000000)*(VLOOKUP($E$8,'CO2 Conversion Factors'!$A$3:$G$23,6,FALSE)))*24)*$J19 -> 189.4665552 | P19: =((((VLOOKUP($B19,'Steam water pres table May-2009'!$B$4:$I$240,8,FALSE)*$H19)/1000000)*(VLOOKUP($E$8,'CO2 Conversion Factors'!$A$3:$G$23,7,FALSE)))*24)*$J19 -> 0 | S19: XXS | U19: 0.434 | X19: =F19 -> 0.0625 | Y19: =(X19+X21)/2 -> 0.09375 | Z19: =L21 -> 4802.564985
B20: 25 | D20: 39.696 | E20: 22.88 | F20: 0.0625 | G20: 0.00390625 | H20: =D20*E20*G20 -> 3.54783 | I20: =(H20/1000)*E$7 -> 0.008869575 | J20: 365 | K20: =I20*24*J20 -> 77.697477 | L20: =((((VLOOKUP($B20,'Steam water pres table May-2009'!$B$4:$I$240,8,FALSE)*$H20)/1000000)*(VLOOKUP($E$8,'CO2 Conversion Factors'!$A$3:$G$23,3,FALSE)))*24)*$J20 -> 4256.839009 | M20: =((((VLOOKUP($B20,'Steam water pres table May-2009'!$B$4:$I$240,8,FALSE)*$H20)/1000000)*(VLOOKUP($E$8,'CO2 Conversion Factors'!$A$3:$G$23,4,FALSE)))*24)*$J20 -> 3.344970865 | N20: =((((VLOOKUP($B20,'Steam water pres table May-2009'!$B$4:$I$240,8,FALSE)*$H20)/1000000)*(VLOOKUP($E$8,'CO2 Conversion Factors'!$A$3:$G$23,5,FALSE)))*24)*$J20 -> 36.35837897 | O20: =((((VLOOKUP($B20,'Steam water pres table May-2009'!$B$4:$I$240,8,FALSE)*$H20)/1000000)*(VLOOKUP($E$8,'CO2 Conversion Factors'!$A$3:$G$23,6,FALSE)))*24)*$J20 -> 254.5086528 | P20: =((((VLOOKUP($B20,'Steam water pres table May-2009'!$B$4:$I$240,8,FALSE)*$H20)/1000000)*(VLOOKUP($E$8,'CO2 Conversion Factors'!$A$3:$G$23,7,FALSE)))*24)*$J20 -> 0
B21: 30 | D21: 44.696 | E21: 22.88 | F21: 0.0625 | G21: 0.00390625 | H21: 3.994705 | I21: 0.0099867625 | J21: 365 | K21: 87.4840395 | L21: =((((VLOOKUP($B21,'Steam water pres table May-2009'!$B$4:$I$240,8,FALSE)*$H21)/1000000)*(VLOOKUP($E$8,'CO2 Conversion Factors'!$A$3:$G$23,3,FALSE)))*24)*$J21 -> 4802.564985 | M21: =((((VLOOKUP($B21,'Steam water pres table May-2009'!$B$4:$I$240,8,FALSE)*$H21)/1000000)*(VLOOKUP($E$8,'CO2 Conversion Factors'!$A$3:$G$23,4,FALSE)))*24)*$J21 -> 3.773795513 | N21: =((((VLOOKUP($B21,'Steam water pres table May-2009'!$B$4:$I$240,8,FALSE)*$H21)/1000000)*(VLOOKUP($E$8,'CO2 Conversion Factors'!$A$3:$G$23,5,FALSE)))*24)*$J21 -> 41.01951644 | O21: =((((VLOOKUP($B21,'Steam water pres table May-2009'!$B$4:$I$240,8,FALSE)*$H21)/1000000)*(VLOOKUP($E$8,'CO2 Conversion Factors'!$A$3:$G$23,6,FALSE)))*24)*$J21 -> 287.1366151 | P21: =((((VLOOKUP($B21,'Steam water pres table May-2009'!$B$4:$I$240,8,FALSE)*$H21)/1000000)*(VLOOKUP($E$8,'CO2 Conversion Factors'!$A$3:$G$23,7,FALSE)))*24)*$J21 -> 0 | R21: 1 | S21: STD | T21: 1.315 | U21: 1.049 | X21: =F34 -> 0.125 | Y21: =(X21+X22)/2 -> 0.15625 | Z21: =L37 -> 19210.25994
B22: 40 | D22: 54.696 | E22: 22.88 | F22: 0.0625 | G22: 0.00390625 | H22: 4.888455 | I22: 0.0122211375 | J22: 365 | K22: 107.0571645 | L22: =((((VLOOKUP($B22,'Steam water pres table May-2009'!$B$4:$I$240,8,FALSE)*$H22)/1000000)*(VLOOKUP($E$8,'CO2 Conversion Factors'!$A$3:$G$23,3,FALSE)))*24)*$J22 -> 5896.062389 | M22: =((((VLOOKUP($B22,'Steam water pres table May-2009'!$B$4:$I$240,8,FALSE)*$H22)/1000000)*(VLOOKUP($E$8,'CO2 Conversion Factors'!$A$3:$G$23,4,FALSE)))*24)*$J22 -> 4.6330521 | N22: =((((VLOOKUP($B22,'Steam water pres table May-2009'!$B$4:$I$240,8,FALSE)*$H22)/1000000)*(VLOOKUP($E$8,'CO2 Conversion Factors'!$A$3:$G$23,5,FALSE)))*24)*$J22 -> 50.35926195 | O22: =((((VLOOKUP($B22,'Steam water pres table May-2009'!$B$4:$I$240,8,FALSE)*$H22)/1000000)*(VLOOKUP($E$8,'CO2 Conversion Factors'!$A$3:$G$23,6,FALSE)))*24)*$J22 -> 352.5148337 | P22: =((((VLOOKUP($B22,'Steam water pres table May-2009'!$B$4:$I$240,8,FALSE)*$H22)/1000000)*(VLOOKUP($E$8,'CO2 Conversion Factors'!$A$3:$G$23,7,FALSE)))*24)*$J22 -> 0 | S22: XS | U22: 0.957 | X22: =F50 -> 0.1875 | Y22: =(X22+X24)/2 -> 0.21875 | Z22: =L54 -> 53064.5615
B23: 50 | D23: 64.696 | E23: 22.88 | F23: 0.0625 | G23: 0.00390625 | H23: =D23*E23*G23 -> 5.782205 | I23: =(H23/1000)*E$7 -> 0.0144555125 | J23: 365 | K23: =I23*24*J23 -> 126.6302895 | L23: =((((VLOOKUP($B23,'Steam water pres table May-2009'!$B$4:$I$240,8,FALSE)*$H23)/1000000)*(VLOOKUP($E$8,'CO2 Conversion Factors'!$A$3:$G$23,3,FALSE)))*24)*$J23 -> 6993.127691 | M23: =((((VLOOKUP($B23,'Steam water pres table May-2009'!$B$4:$I$240,8,FALSE)*$H23)/1000000)*(VLOOKUP($E$8,'CO2 Conversion Factors'!$A$3:$G$23,4,FALSE)))*24)*$J23 -> 5.495112295 | N23: =((((VLOOKUP($B23,'Steam water pres table May-2009'!$B$4:$I$240,8,FALSE)*$H23)/1000000)*(VLOOKUP($E$8,'CO2 Conversion Factors'!$A$3:$G$23,5,FALSE)))*24)*$J23 -> 59.72948147 | O23: =((((VLOOKUP($B23,'Steam water pres table May-2009'!$B$4:$I$240,8,FALSE)*$H23)/1000000)*(VLOOKUP($E$8,'CO2 Conversion Factors'!$A$3:$G$23,6,FALSE)))*24)*$J23 -> 418.1063703 | P23: =((((VLOOKUP($B23,'Steam water pres table May-2009'!$B$4:$I$240,8,FALSE)*$H23)/1000000)*(VLOOKUP($E$8,'CO2 Conversion Factors'!$A$3:$G$23,7,FALSE)))*24)*$J23 -> 0
B24: 75 | D24: 89.696 | E24: 22.88 | F24: 0.0625 | G24: 0.00390625 | H24: 8.01658 | I24: 0.02004145 | J24: 365 | K24: 175.563102 | L24: =((((VLOOKUP($B24,'Steam water pres table May-2009'!$B$4:$I$240,8,FALSE)*$H24)/1000000)*(VLOOKUP($E$8,'CO2 Conversion Factors'!$A$3:$G$23,3,FALSE)))*24)*$J24 -> 9743.858061 | M24: =((((VLOOKUP($B24,'Steam water pres table May-2009'!$B$4:$I$240,8,FALSE)*$H24)/1000000)*(VLOOKUP($E$8,'CO2 Conversion Factors'!$A$3:$G$23,4,FALSE)))*24)*$J24 -> 7.656601824 | N24: =((((VLOOKUP($B24,'Steam water pres table May-2009'!$B$4:$I$240,8,FALSE)*$H24)/1000000)*(VLOOKUP($E$8,'CO2 Conversion Factors'!$A$3:$G$23,5,FALSE)))*24)*$J24 -> 83.22393287 | O24: =((((VLOOKUP($B24,'Steam water pres table May-2009'!$B$4:$I$240,8,FALSE)*$H24)/1000000)*(VLOOKUP($E$8,'CO2 Conversion Factors'!$A$3:$G$23,6,FALSE)))*24)*$J24 -> 582.5675301 | P24: =((((VLOOKUP($B24,'Steam water pres table May-2009'!$B$4:$I$240,8,FALSE)*$H24)/1000000)*(VLOOKUP($E$8,'CO2 Conversion Factors'!$A$3:$G$23,7,FALSE)))*24)*$J24 -> 0 | S24: XXS | U24: 0.599 | X24: =F66 -> 0.25 | Y24: =(X24+X25)/2 -> 0.3125 | Z24: =L69 -> 76841.03976
B25: 100 | D25: 114.696 | E25: 22.88 | F25: 0.0625 | G25: 0.00390625 | H25: 10.250955 | I25: 0.0256273875 | J25: 365 | K25: 224.4959145 | L25: =((((VLOOKUP($B25,'Steam water pres table May-2009'!$B$4:$I$240,8,FALSE)*$H25)/1000000)*(VLOOKUP($E$8,'CO2 Conversion Factors'!$A$3:$G$23,3,FALSE)))*24)*$J25 -> 12504.86712 | M25: =((((VLOOKUP($B25,'Steam water pres table May-2009'!$B$4:$I$240,8,FALSE)*$H25)/1000000)*(VLOOKUP($E$8,'CO2 Conversion Factors'!$A$3:$G$23,4,FALSE)))*24)*$J25 -> 9.826168218 | N25: =((((VLOOKUP($B25,'Steam water pres table May-2009'!$B$4:$I$240,8,FALSE)*$H25)/1000000)*(VLOOKUP($E$8,'CO2 Conversion Factors'!$A$3:$G$23,5,FALSE)))*24)*$J25 -> 106.8061763 | O25: =((((VLOOKUP($B25,'Steam water pres table May-2009'!$B$4:$I$240,8,FALSE)*$H25)/1000000)*(VLOOKUP($E$8,'CO2 Conversion Factors'!$A$3:$G$23,6,FALSE)))*24)*$J25 -> 747.643234 | P25: =((((VLOOKUP($B25,'Steam water pres table May-2009'!$B$4:$I$240,8,FALSE)*$H25)/1000000)*(VLOOKUP($E$8,'CO2 Conversion Factors'!$A$3:$G$23,7,FALSE)))*24)*$J25 -> 0 | R25: 1-1/4 | S25: STD | T25: 1.66 | U25: 1.38 | X25: =F82 -> 0.375 | Y25: =(X25+X30)/2 -> 0.4375 | Z25: =L85 -> 172892.3395
B26: 150 | D26: =B26+14.696 -> 164.696 | E26: 22.88 | F26: 0.0625 | G26: 0.00390625 | H26: =D26*E26*G26 -> 14.719705 | I26: =(H26/1000)*E$7 -> 0.0367992625 | J26: 365 | K26: =I26*24*J26 -> 322.3615395 | L26: =((((VLOOKUP($B26,'Steam water pres table May-2009'!$B$4:$I$240,8,FALSE)*$H26)/1000000)*(VLOOKUP($E$8,'CO2 Conversion Factors'!$A$3:$G$23,3,FALSE)))*24)*$J26 -> 18041.92631 | M26: =((((VLOOKUP($B26,'Steam water pres table May-2009'!$B$4:$I$240,8,FALSE)*$H26)/1000000)*(VLOOKUP($E$8,'CO2 Conversion Factors'!$A$3:$G$23,4,FALSE)))*24)*$J26 -> 14.17712009 | N26: =((((VLOOKUP($B26,'Steam water pres table May-2009'!$B$4:$I$240,8,FALSE)*$H26)/1000000)*(VLOOKUP($E$8,'CO2 Conversion Factors'!$A$3:$G$23,5,FALSE)))*24)*$J26 -> 154.0991315 | O26: =((((VLOOKUP($B26,'Steam water pres table May-2009'!$B$4:$I$240,8,FALSE)*$H26)/1000000)*(VLOOKUP($E$8,'CO2 Conversion Factors'!$A$3:$G$23,6,FALSE)))*24)*$J26 -> 1078.69392 | P26: =((((VLOOKUP($B26,'Steam water pres table May-2009'!$B$4:$I$240,8,FALSE)*$H26)/1000000)*(VLOOKUP($E$8,'CO2 Conversion Factors'!$A$3:$G$23,7,FALSE)))*24)*$J26 -> 0 | X26: =F83 -> 0.375 | Y26: =(X26+X31)/2 -> 0.1875 | Z26: =L86 -> 212258.246
B27: 250 | D27: =B27+14.696 -> 264.696 | E27: 22.88 | F27: 0.0625 | G27: 0.00390625 | H27: =D27*E27*G27 -> 23.657205 | I27: =(H27/1000)*E$7 -> 0.0591430125 | J27: 365 | K27: =I27*24*J27 -> 518.0927895 | L27: =((((VLOOKUP($B27,'Steam water pres table May-2009'!$B$4:$I$240,8,FALSE)*$H27)/1000000)*(VLOOKUP($E$8,'CO2 Conversion Factors'!$A$3:$G$23,3,FALSE)))*24)*$J27 -> 29158.204 | M27: =((((VLOOKUP($B27,'Steam water pres table May-2009'!$B$4:$I$240,8,FALSE)*$H27)/1000000)*(VLOOKUP($E$8,'CO2 Conversion Factors'!$A$3:$G$23,4,FALSE)))*24)*$J27 -> 22.9121521 | N27: =((((VLOOKUP($B27,'Steam water pres table May-2009'!$B$4:$I$240,8,FALSE)*$H27)/1000000)*(VLOOKUP($E$8,'CO2 Conversion Factors'!$A$3:$G$23,5,FALSE)))*24)*$J27 -> 249.0451315 | O27: =((((VLOOKUP($B27,'Steam water pres table May-2009'!$B$4:$I$240,8,FALSE)*$H27)/1000000)*(VLOOKUP($E$8,'CO2 Conversion Factors'!$A$3:$G$23,6,FALSE)))*24)*$J27 -> 1743.315921 | P27: =((((VLOOKUP($B27,'Steam water pres table May-2009'!$B$4:$I$240,8,FALSE)*$H27)/1000000)*(VLOOKUP($E$8,'CO2 Conversion Factors'!$A$3:$G$23,7,FALSE)))*24)*$J27 -> 0 | S27: XS | U27: 1.278 | X27: =F84 -> 0.375 | Y27: =(X27+X32)/2 -> 0.1875 | Z27: =L87 -> 251752.5969
B28: 300 | D28: =B28+14.696 -> 314.696 | E28: 22.88 | F28: 0.0625 | G28: 0.00390625 | H28: =D28*E28*G28 -> 28.125955 | I28: =(H28/1000)*E$7 -> 0.0703148875 | J28: 365 | K28: =I28*24*J28 -> 615.9584145 | L28: =((((VLOOKUP($B28,'Steam water pres table May-2009'!$B$4:$I$240,8,FALSE)*$H28)/1000000)*(VLOOKUP($E$8,'CO2 Conversion Factors'!$A$3:$G$23,3,FALSE)))*24)*$J28 -> 34707.8979 | M28: =((((VLOOKUP($B28,'Steam water pres table May-2009'!$B$4:$I$240,8,FALSE)*$H28)/1000000)*(VLOOKUP($E$8,'CO2 Conversion Factors'!$A$3:$G$23,4,FALSE)))*24)*$J28 -> 27.27303217 | N28: =((((VLOOKUP($B28,'Steam water pres table May-2009'!$B$4:$I$240,8,FALSE)*$H28)/1000000)*(VLOOKUP($E$8,'CO2 Conversion Factors'!$A$3:$G$23,5,FALSE)))*24)*$J28 -> 296.4460019 | O28: =((((VLOOKUP($B28,'Steam water pres table May-2009'!$B$4:$I$240,8,FALSE)*$H28)/1000000)*(VLOOKUP($E$8,'CO2 Conversion Factors'!$A$3:$G$23,6,FALSE)))*24)*$J28 -> 2075.122013 | P28: =((((VLOOKUP($B28,'Steam water pres table May-2009'!$B$4:$I$240,8,FALSE)*$H28)/1000000)*(VLOOKUP($E$8,'CO2 Conversion Factors'!$A$3:$G$23,7,FALSE)))*24)*$J28 -> 0 | S28: XXS | U28: 0.896 | X28: =F85 -> 0.375 | Y28: =(X28+X33)/2 -> 0.1875 | Z28: =L88 -> 350778.8902
B29: 400 | D29: =B29+14.696 -> 414.696 | E29: 22.88 | F29: 0.0625 | G29: 0.00390625 | H29: =D29*E29*G29 -> 37.063455 | I29: =(H29/1000)*E$7 -> 0.0926586375 | J29: 365 | K29: =I29*24*J29 -> 811.6896645 | L29: =((((VLOOKUP($B29,'Steam water pres table May-2009'!$B$4:$I$240,8,FALSE)*$H29)/1000000)*(VLOOKUP($E$8,'CO2 Conversion Factors'!$A$3:$G$23,3,FALSE)))*24)*$J29 -> 45776.83577 | M29: =((((VLOOKUP($B29,'Steam water pres table May-2009'!$B$4:$I$240,8,FALSE)*$H29)/1000000)*(VLOOKUP($E$8,'CO2 Conversion Factors'!$A$3:$G$23,4,FALSE)))*24)*$J29 -> 35.97086515 | N29: =((((VLOOKUP($B29,'Steam water pres table May-2009'!$B$4:$I$240,8,FALSE)*$H29)/1000000)*(VLOOKUP($E$8,'CO2 Conversion Factors'!$A$3:$G$23,5,FALSE)))*24)*$J29 -> 390.9876646 | O29: =((((VLOOKUP($B29,'Steam water pres table May-2009'!$B$4:$I$240,8,FALSE)*$H29)/1000000)*(VLOOKUP($E$8,'CO2 Conversion Factors'!$A$3:$G$23,6,FALSE)))*24)*$J29 -> 2736.913652 | P29: =((((VLOOKUP($B29,'Steam water pres table May-2009'!$B$4:$I$240,8,FALSE)*$H29)/1000000)*(VLOOKUP($E$8,'CO2 Conversion Factors'!$A$3:$G$23,7,FALSE)))*24)*$J29 -> 0 | R29: 1-1/2 | S29: STD | T29: 1.9 | U29: 1.61 | X29: =F86 -> 0.375 | Y29: =(X29+X34)/2 -> 0.1875 | Z29: =L89 -> 450175.2163
B30: 600 | D30: 614.696 | E30: 22.88 | F30: 0.0625 | G30: 0.00390625 | H30: 54.938455 | I30: 0.1373461375 | J30: 365 | K30: 1203.152164 | L30: =((((VLOOKUP($B30,'Steam water pres table May-2009'!$B$4:$I$240,8,FALSE)*$H30)/1000000)*(VLOOKUP($E$8,'CO2 Conversion Factors'!$A$3:$G$23,3,FALSE)))*24)*$J30 -> 67778.06661 | M30: =((((VLOOKUP($B30,'Steam water pres table May-2009'!$B$4:$I$240,8,FALSE)*$H30)/1000000)*(VLOOKUP($E$8,'CO2 Conversion Factors'!$A$3:$G$23,4,FALSE)))*24)*$J30 -> 53.25915722 | N30: =((((VLOOKUP($B30,'Steam water pres table May-2009'!$B$4:$I$240,8,FALSE)*$H30)/1000000)*(VLOOKUP($E$8,'CO2 Conversion Factors'!$A$3:$G$23,5,FALSE)))*24)*$J30 -> 578.9038829 | O30: =((((VLOOKUP($B30,'Steam water pres table May-2009'!$B$4:$I$240,8,FALSE)*$H30)/1000000)*(VLOOKUP($E$8,'CO2 Conversion Factors'!$A$3:$G$23,6,FALSE)))*24)*$J30 -> 4052.32718 | P30: =((((VLOOKUP($B30,'Steam water pres table May-2009'!$B$4:$I$240,8,FALSE)*$H30)/1000000)*(VLOOKUP($E$8,'CO2 Conversion Factors'!$A$3:$G$23,7,FALSE)))*24)*$J30 -> 0 | S30: XS | U30: 1.5 | X30: =F98 -> 0.5 | Y30: =G98 -> 0.25
S31: XXS | U31: 0.95
B32: 1/8" Leak | R32: 2 | S32: STD | T32: 2.375 | U32: 2.067
B33: Pressure | D33: Abs Pressure | E33: Constant | F33: Diameter | G33: D^2 | H33: Steam Loss (pph) | I33: Cost / Hour | J33: Days / Year | K33: Cost / Year | L33: CO2 Emissions / Year | M33: NOX | N33: SO2 | O33: Particulates | P33: Mercury
B34: 5 | D34: =B34+14.696 -> 19.696 | E34: 22.88 | F34: =1/8 -> 0.125 | G34: =F34^2 -> 0.015625 | H34: =D34*E34*G34 -> 7.04132 | I34: =(H34/1000)*E$7 -> 0.0176033 | J34: 365 | K34: =I34*24*J34 -> 154.204908 | L34: =((((VLOOKUP($B34,'Steam water pres table May-2009'!$B$4:$I$240,8,FALSE)*$H34)/1000000)*(VLOOKUP($E$8,'CO2 Conversion Factors'!$A$3:$G$23,3,FALSE)))*24)*$J34 -> 8349.107624 | M34: =((((VLOOKUP($B34,'Steam water pres table May-2009'!$B$4:$I$240,8,FALSE)*$H34)/1000000)*(VLOOKUP($E$8,'CO2 Conversion Factors'!$A$3:$G$23,4,FALSE)))*24)*$J34 -> 6.560624372 | N34: =((((VLOOKUP($B34,'Steam water pres table May-2009'!$B$4:$I$240,8,FALSE)*$H34)/1000000)*(VLOOKUP($E$8,'CO2 Conversion Factors'!$A$3:$G$23,5,FALSE)))*24)*$J34 -> 71.31113448 | O34: =((((VLOOKUP($B34,'Steam water pres table May-2009'!$B$4:$I$240,8,FALSE)*$H34)/1000000)*(VLOOKUP($E$8,'CO2 Conversion Factors'!$A$3:$G$23,6,FALSE)))*24)*$J34 -> 499.1779413 | P34: =((((VLOOKUP($B34,'Steam water pres table May-2009'!$B$4:$I$240,8,FALSE)*$H34)/1000000)*(VLOOKUP($E$8,'CO2 Conversion Factors'!$A$3:$G$23,7,FALSE)))*24)*$J34 -> 0 | S34: XS | U34: 1.939
B35: 15 | D35: 29.696 | E35: 22.88 | F35: 0.125 | G35: 0.015625 | H35: 10.61632 | I35: 0.0265408 | J35: 365 | K35: 232.497408 | L35: =((((VLOOKUP($B35,'Steam water pres table May-2009'!$B$4:$I$240,8,FALSE)*$H35)/1000000)*(VLOOKUP($E$8,'CO2 Conversion Factors'!$A$3:$G$23,3,FALSE)))*24)*$J35 -> 12675.85388 | M35: =((((VLOOKUP($B35,'Steam water pres table May-2009'!$B$4:$I$240,8,FALSE)*$H35)/1000000)*(VLOOKUP($E$8,'CO2 Conversion Factors'!$A$3:$G$23,4,FALSE)))*24)*$J35 -> 9.960527475 | N35: =((((VLOOKUP($B35,'Steam water pres table May-2009'!$B$4:$I$240,8,FALSE)*$H35)/1000000)*(VLOOKUP($E$8,'CO2 Conversion Factors'!$A$3:$G$23,5,FALSE)))*24)*$J35 -> 108.266603 | O35: =((((VLOOKUP($B35,'Steam water pres table May-2009'!$B$4:$I$240,8,FALSE)*$H35)/1000000)*(VLOOKUP($E$8,'CO2 Conversion Factors'!$A$3:$G$23,6,FALSE)))*24)*$J35 -> 757.8662209 | P35: =((((VLOOKUP($B35,'Steam water pres table May-2009'!$B$4:$I$240,8,FALSE)*$H35)/1000000)*(VLOOKUP($E$8,'CO2 Conversion Factors'!$A$3:$G$23,7,FALSE)))*24)*$J35 -> 0 | S35: XXS | U35: 1.503
B36: 25 | D36: 39.696 | E36: 22.88 | F36: 0.125 | G36: 0.015625 | H36: =D36*E36*G36 -> 14.19132 | I36: =(H36/1000)*E$7 -> 0.0354783 | J36: 365 | K36: =I36*24*J36 -> 310.789908 | L36: =((((VLOOKUP($B36,'Steam water pres table May-2009'!$B$4:$I$240,8,FALSE)*$H36)/1000000)*(VLOOKUP($E$8,'CO2 Conversion Factors'!$A$3:$G$23,3,FALSE)))*24)*$J36 -> 17027.35604 | M36: =((((VLOOKUP($B36,'Steam water pres table May-2009'!$B$4:$I$240,8,FALSE)*$H36)/1000000)*(VLOOKUP($E$8,'CO2 Conversion Factors'!$A$3:$G$23,4,FALSE)))*24)*$J36 -> 13.37988346 | N36: =((((VLOOKUP($B36,'Steam water pres table May-2009'!$B$4:$I$240,8,FALSE)*$H36)/1000000)*(VLOOKUP($E$8,'CO2 Conversion Factors'!$A$3:$G$23,5,FALSE)))*24)*$J36 -> 145.4335159 | O36: =((((VLOOKUP($B36,'Steam water pres table May-2009'!$B$4:$I$240,8,FALSE)*$H36)/1000000)*(VLOOKUP($E$8,'CO2 Conversion Factors'!$A$3:$G$23,6,FALSE)))*24)*$J36 -> 1018.034611 | P36: =((((VLOOKUP($B36,'Steam water pres table May-2009'!$B$4:$I$240,8,FALSE)*$H36)/1000000)*(VLOOKUP($E$8,'CO2 Conversion Factors'!$A$3:$G$23,7,FALSE)))*24)*$J36 -> 0
B37: 30 | D37: 44.696 | E37: 22.88 | F37: 0.125 | G37: 0.015625 | H37: 15.97882 | I37: 0.03994705 | J37: 365 | K37: 349.936158 | L37: =((((VLOOKUP($B37,'Steam water pres table May-2009'!$B$4:$I$240,8,FALSE)*$H37)/1000000)*(VLOOKUP($E$8,'CO2 Conversion Factors'!$A$3:$G$23,3,FALSE)))*24)*$J37 -> 19210.25994 | M37: =((((VLOOKUP($B37,'Steam water pres table May-2009'!$B$4:$I$240,8,FALSE)*$H37)/1000000)*(VLOOKUP($E$8,'CO2 Conversion Factors'!$A$3:$G$23,4,FALSE)))*24)*$J37 -> 15.09518205 | N37: =((((VLOOKUP($B37,'Steam water pres table May-2009'!$B$4:$I$240,8,FALSE)*$H37)/1000000)*(VLOOKUP($E$8,'CO2 Conversion Factors'!$A$3:$G$23,5,FALSE)))*24)*$J37 -> 164.0780658 | O37: =((((VLOOKUP($B37,'Steam water pres table May-2009'!$B$4:$I$240,8,FALSE)*$H37)/1000000)*(VLOOKUP($E$8,'CO2 Conversion Factors'!$A$3:$G$23,6,FALSE)))*24)*$J37 -> 1148.54646 | P37: =((((VLOOKUP($B37,'Steam water pres table May-2009'!$B$4:$I$240,8,FALSE)*$H37)/1000000)*(VLOOKUP($E$8,'CO2 Conversion Factors'!$A$3:$G$23,7,FALSE)))*24)*$J37 -> 0 | R37: 2-1/2 | S37: STD | T37: 2.875 | U37: 2.469
B38: 40 | D38: 54.696 | E38: 22.88 | F38: 0.125 | G38: 0.015625 | H38: 19.55382 | I38: 0.04888455 | J38: 365 | K38: 428.228658 | L38: =((((VLOOKUP($B38,'Steam water pres table May-2009'!$B$4:$I$240,8,FALSE)*$H38)/1000000)*(VLOOKUP($E$8,'CO2 Conversion Factors'!$A$3:$G$23,3,FALSE)))*24)*$J38 -> 23584.24956 | M38: =((((VLOOKUP($B38,'Steam water pres table May-2009'!$B$4:$I$240,8,FALSE)*$H38)/1000000)*(VLOOKUP($E$8,'CO2 Conversion Factors'!$A$3:$G$23,4,FALSE)))*24)*$J38 -> 18.5322084 | N38: =((((VLOOKUP($B38,'Steam water pres table May-2009'!$B$4:$I$240,8,FALSE)*$H38)/1000000)*(VLOOKUP($E$8,'CO2 Conversion Factors'!$A$3:$G$23,5,FALSE)))*24)*$J38 -> 201.4370478 | O38: =((((VLOOKUP($B38,'Steam water pres table May-2009'!$B$4:$I$240,8,FALSE)*$H38)/1000000)*(VLOOKUP($E$8,'CO2 Conversion Factors'!$A$3:$G$23,6,FALSE)))*24)*$J38 -> 1410.059335 | P38: =((((VLOOKUP($B38,'Steam water pres table May-2009'!$B$4:$I$240,8,FALSE)*$H38)/1000000)*(VLOOKUP($E$8,'CO2 Conversion Factors'!$A$3:$G$23,7,FALSE)))*24)*$J38 -> 0 | S38: XS | U38: 2.323
B39: 50 | D39: 64.696 | E39: 22.88 | F39: 0.125 | G39: 0.015625 | H39: =D39*E39*G39 -> 23.12882 | I39: =(H39/1000)*E$7 -> 0.05782205 | J39: 365 | K39: =I39*24*J39 -> 506.521158 | L39: =((((VLOOKUP($B39,'Steam water pres table May-2009'!$B$4:$I$240,8,FALSE)*$H39)/1000000)*(VLOOKUP($E$8,'CO2 Conversion Factors'!$A$3:$G$23,3,FALSE)))*24)*$J39 -> 27972.51076 | M39: =((((VLOOKUP($B39,'Steam water pres table May-2009'!$B$4:$I$240,8,FALSE)*$H39)/1000000)*(VLOOKUP($E$8,'CO2 Conversion Factors'!$A$3:$G$23,4,FALSE)))*24)*$J39 -> 21.98044918 | N39: =((((VLOOKUP($B39,'Steam water pres table May-2009'!$B$4:$I$240,8,FALSE)*$H39)/1000000)*(VLOOKUP($E$8,'CO2 Conversion Factors'!$A$3:$G$23,5,FALSE)))*24)*$J39 -> 238.9179259 | O39: =((((VLOOKUP($B39,'Steam water pres table May-2009'!$B$4:$I$240,8,FALSE)*$H39)/1000000)*(VLOOKUP($E$8,'CO2 Conversion Factors'!$A$3:$G$23,6,FALSE)))*24)*$J39 -> 1672.425481 | P39: =((((VLOOKUP($B39,'Steam water pres table May-2009'!$B$4:$I$240,8,FALSE)*$H39)/1000000)*(VLOOKUP($E$8,'CO2 Conversion Factors'!$A$3:$G$23,7,FALSE)))*24)*$J39 -> 0
B40: 75 | D40: 89.696 | E40: 22.88 | F40: 0.125 | G40: 0.015625 | H40: 32.06632 | I40: 0.0801658 | J40: 365 | K40: 702.252408 | L40: =((((VLOOKUP($B40,'Steam water pres table May-2009'!$B$4:$I$240,8,FALSE)*$H40)/1000000)*(VLOOKUP($E$8,'CO2 Conversion Factors'!$A$3:$G$23,3,FALSE)))*24)*$J40 -> 38975.43224 | M40: =((((VLOOKUP($B40,'Steam water pres table May-2009'!$B$4:$I$240,8,FALSE)*$H40)/1000000)*(VLOOKUP($E$8,'CO2 Conversion Factors'!$A$3:$G$23,4,FALSE)))*24)*$J40 -> 30.6264073 | N40: =((((VLOOKUP($B40,'Steam water pres table May-2009'!$B$4:$I$240,8,FALSE)*$H40)/1000000)*(VLOOKUP($E$8,'CO2 Conversion Factors'!$A$3:$G$23,5,FALSE)))*24)*$J40 -> 332.8957315 | O40: =((((VLOOKUP($B40,'Steam water pres table May-2009'!$B$4:$I$240,8,FALSE)*$H40)/1000000)*(VLOOKUP($E$8,'CO2 Conversion Factors'!$A$3:$G$23,6,FALSE)))*24)*$J40 -> 2330.27012 | P40: =((((VLOOKUP($B40,'Steam water pres table May-2009'!$B$4:$I$240,8,FALSE)*$H40)/1000000)*(VLOOKUP($E$8,'CO2 Conversion Factors'!$A$3:$G$23,7,FALSE)))*24)*$J40 -> 0 | S40: XXS | U40: 1.771
B41: 100 | D41: 114.696 | E41: 22.88 | F41: 0.125 | G41: 0.015625 | H41: 41.00382 | I41: 0.10250955 | J41: 365 | K41: 897.983658 | L41: =((((VLOOKUP($B41,'Steam water pres table May-2009'!$B$4:$I$240,8,FALSE)*$H41)/1000000)*(VLOOKUP($E$8,'CO2 Conversion Factors'!$A$3:$G$23,3,FALSE)))*24)*$J41 -> 50019.46848 | M41: =((((VLOOKUP($B41,'Steam water pres table May-2009'!$B$4:$I$240,8,FALSE)*$H41)/1000000)*(VLOOKUP($E$8,'CO2 Conversion Factors'!$A$3:$G$23,4,FALSE)))*24)*$J41 -> 39.30467287 | N41: =((((VLOOKUP($B41,'Steam water pres table May-2009'!$B$4:$I$240,8,FALSE)*$H41)/1000000)*(VLOOKUP($E$8,'CO2 Conversion Factors'!$A$3:$G$23,5,FALSE)))*24)*$J41 -> 427.2247051 | O41: =((((VLOOKUP($B41,'Steam water pres table May-2009'!$B$4:$I$240,8,FALSE)*$H41)/1000000)*(VLOOKUP($E$8,'CO2 Conversion Factors'!$A$3:$G$23,6,FALSE)))*24)*$J41 -> 2990.572936 | P41: =((((VLOOKUP($B41,'Steam water pres table May-2009'!$B$4:$I$240,8,FALSE)*$H41)/1000000)*(VLOOKUP($E$8,'CO2 Conversion Factors'!$A$3:$G$23,7,FALSE)))*24)*$J41 -> 0 | R41: 3 | S41: STD | T41: 3.5 | U41: 3.068
B42: 150 | D42: =B42+14.696 -> 164.696 | E42: 22.88 | F42: 0.125 | G42: 0.015625 | H42: =D42*E42*G42 -> 58.87882 | I42: =(H42/1000)*E$7 -> 0.14719705 | J42: 365 | K42: =I42*24*J42 -> 1289.446158 | L42: =((((VLOOKUP($B42,'Steam water pres table May-2009'!$B$4:$I$240,8,FALSE)*$H42)/1000000)*(VLOOKUP($E$8,'CO2 Conversion Factors'!$A$3:$G$23,3,FALSE)))*24)*$J42 -> 72167.70524 | M42: =((((VLOOKUP($B42,'Steam water pres table May-2009'!$B$4:$I$240,8,FALSE)*$H42)/1000000)*(VLOOKUP($E$8,'CO2 Conversion Factors'!$A$3:$G$23,4,FALSE)))*24)*$J42 -> 56.70848037 | N42: =((((VLOOKUP($B42,'Steam water pres table May-2009'!$B$4:$I$240,8,FALSE)*$H42)/1000000)*(VLOOKUP($E$8,'CO2 Conversion Factors'!$A$3:$G$23,5,FALSE)))*24)*$J42 -> 616.3965258 | O42: =((((VLOOKUP($B42,'Steam water pres table May-2009'!$B$4:$I$240,8,FALSE)*$H42)/1000000)*(VLOOKUP($E$8,'CO2 Conversion Factors'!$A$3:$G$23,6,FALSE)))*24)*$J42 -> 4314.775681 | P42: =((((VLOOKUP($B42,'Steam water pres table May-2009'!$B$4:$I$240,8,FALSE)*$H42)/1000000)*(VLOOKUP($E$8,'CO2 Conversion Factors'!$A$3:$G$23,7,FALSE)))*24)*$J42 -> 0 | S42: XS | U42: 2.9
B43: 250 | D43: =B43+14.696 -> 264.696 | E43: 22.88 | F43: 0.125 | G43: 0.015625 | H43: =D43*E43*G43 -> 94.62882 | I43: =(H43/1000)*E$7 -> 0.23657205 | J43: 365 | K43: =I43*24*J43 -> 2072.371158 | L43: =((((VLOOKUP($B43,'Steam water pres table May-2009'!$B$4:$I$240,8,FALSE)*$H43)/1000000)*(VLOOKUP($E$8,'CO2 Conversion Factors'!$A$3:$G$23,3,FALSE)))*24)*$J43 -> 116632.816 | M43: =((((VLOOKUP($B43,'Steam water pres table May-2009'!$B$4:$I$240,8,FALSE)*$H43)/1000000)*(VLOOKUP($E$8,'CO2 Conversion Factors'!$A$3:$G$23,4,FALSE)))*24)*$J43 -> 91.64860841 | N43: =((((VLOOKUP($B43,'Steam water pres table May-2009'!$B$4:$I$240,8,FALSE)*$H43)/1000000)*(VLOOKUP($E$8,'CO2 Conversion Factors'!$A$3:$G$23,5,FALSE)))*24)*$J43 -> 996.1805262 | O43: =((((VLOOKUP($B43,'Steam water pres table May-2009'!$B$4:$I$240,8,FALSE)*$H43)/1000000)*(VLOOKUP($E$8,'CO2 Conversion Factors'!$A$3:$G$23,6,FALSE)))*24)*$J43 -> 6973.263683 | P43: =((((VLOOKUP($B43,'Steam water pres table May-2009'!$B$4:$I$240,8,FALSE)*$H43)/1000000)*(VLOOKUP($E$8,'CO2 Conversion Factors'!$A$3:$G$23,7,FALSE)))*24)*$J43 -> 0 | S43: XXS | U43: 2.3
B44: 300 | D44: =B44+14.696 -> 314.696 | E44: 22.88 | F44: 0.125 | G44: 0.015625 | H44: =D44*E44*G44 -> 112.50382 | I44: =(H44/1000)*E$7 -> 0.28125955 | J44: 365 | K44: =I44*24*J44 -> 2463.833658 | L44: =((((VLOOKUP($B44,'Steam water pres table May-2009'!$B$4:$I$240,8,FALSE)*$H44)/1000000)*(VLOOKUP($E$8,'CO2 Conversion Factors'!$A$3:$G$23,3,FALSE)))*24)*$J44 -> 138831.5916 | M44: =((((VLOOKUP($B44,'Steam water pres table May-2009'!$B$4:$I$240,8,FALSE)*$H44)/1000000)*(VLOOKUP($E$8,'CO2 Conversion Factors'!$A$3:$G$23,4,FALSE)))*24)*$J44 -> 109.0921287 | N44: =((((VLOOKUP($B44,'Steam water pres table May-2009'!$B$4:$I$240,8,FALSE)*$H44)/1000000)*(VLOOKUP($E$8,'CO2 Conversion Factors'!$A$3:$G$23,5,FALSE)))*24)*$J44 -> 1185.784008 | O44: =((((VLOOKUP($B44,'Steam water pres table May-2009'!$B$4:$I$240,8,FALSE)*$H44)/1000000)*(VLOOKUP($E$8,'CO2 Conversion Factors'!$A$3:$G$23,6,FALSE)))*24)*$J44 -> 8300.488053 | P44: =((((VLOOKUP($B44,'Steam water pres table May-2009'!$B$4:$I$240,8,FALSE)*$H44)/1000000)*(VLOOKUP($E$8,'CO2 Conversion Factors'!$A$3:$G$23,7,FALSE)))*24)*$J44 -> 0 | R44: 3-1/2 | S44: STD | T44: 4 | U44: 3.548
B45: 400 | D45: 414.696 | E45: 22.88 | F45: 0.125 | G45: 0.015625 | H45: =D45*E45*G45 -> 148.25382 | I45: =(H45/1000)*E$7 -> 0.37063455 | J45: 365 | K45: =I45*24*J45 -> 3246.758658 | L45: =((((VLOOKUP($B45,'Steam water pres table May-2009'!$B$4:$I$240,8,FALSE)*$H45)/1000000)*(VLOOKUP($E$8,'CO2 Conversion Factors'!$A$3:$G$23,3,FALSE)))*24)*$J45 -> 183107.3431 | M45: =((((VLOOKUP($B45,'Steam water pres table May-2009'!$B$4:$I$240,8,FALSE)*$H45)/1000000)*(VLOOKUP($E$8,'CO2 Conversion Factors'!$A$3:$G$23,4,FALSE)))*24)*$J45 -> 143.8834606 | N45: =((((VLOOKUP($B45,'Steam water pres table May-2009'!$B$4:$I$240,8,FALSE)*$H45)/1000000)*(VLOOKUP($E$8,'CO2 Conversion Factors'!$A$3:$G$23,5,FALSE)))*24)*$J45 -> 1563.950659 | O45: =((((VLOOKUP($B45,'Steam water pres table May-2009'!$B$4:$I$240,8,FALSE)*$H45)/1000000)*(VLOOKUP($E$8,'CO2 Conversion Factors'!$A$3:$G$23,6,FALSE)))*24)*$J45 -> 10947.65461 | P45: =((((VLOOKUP($B45,'Steam water pres table May-2009'!$B$4:$I$240,8,FALSE)*$H45)/1000000)*(VLOOKUP($E$8,'CO2 Conversion Factors'!$A$3:$G$23,7,FALSE)))*24)*$J45 -> 0 | S45: XS | U45: 3.364
B46: 600 | D46: 614.696 | E46: 22.88 | F46: 0.125 | G46: 0.015625 | H46: 219.75382 | I46: 0.54938455 | J46: 365 | K46: 4812.608658 | L46: =((((VLOOKUP($B46,'Steam water pres table May-2009'!$B$4:$I$240,8,FALSE)*$H46)/1000000)*(VLOOKUP($E$8,'CO2 Conversion Factors'!$A$3:$G$23,3,FALSE)))*24)*$J46 -> 271112.2664 | M46: =((((VLOOKUP($B46,'Steam water pres table May-2009'!$B$4:$I$240,8,FALSE)*$H46)/1000000)*(VLOOKUP($E$8,'CO2 Conversion Factors'!$A$3:$G$23,4,FALSE)))*24)*$J46 -> 213.0366289 | N46: =((((VLOOKUP($B46,'Steam water pres table May-2009'!$B$4:$I$240,8,FALSE)*$H46)/1000000)*(VLOOKUP($E$8,'CO2 Conversion Factors'!$A$3:$G$23,5,FALSE)))*24)*$J46 -> 2315.615531 | O46: =((((VLOOKUP($B46,'Steam water pres table May-2009'!$B$4:$I$240,8,FALSE)*$H46)/1000000)*(VLOOKUP($E$8,'CO2 Conversion Factors'!$A$3:$G$23,6,FALSE)))*24)*$J46 -> 16209.30872 | P46: =((((VLOOKUP($B46,'Steam water pres table May-2009'!$B$4:$I$240,8,FALSE)*$H46)/1000000)*(VLOOKUP($E$8,'CO2 Conversion Factors'!$A$3:$G$23,7,FALSE)))*24)*$J46 -> 0
S47: XXS | U47: 2.728
B48: 3/16" Leak | R48: 4 | S48: STD | T48: 4.5 | U48: 4.026
B49: Pressure | D49: Abs Pressure | E49: Constant | F49: Diameter | G49: D^2 | H49: Steam Loss (pph) | I49: Cost / Hour | J49: Days / Year | K49: Cost / Year | L49: CO2 Emissions / Year | M49: NOX | N49: SO2 | O49: Particulates | P49: Mercury
B50: 5 | D50: =B50+14.696 -> 19.696 | E50: 22.88 | F50: =3/16 -> 0.1875 | G50: =F50^2 -> 0.03515625 | H50: =D50*E50*G50 -> 15.84297 | I50: =(H50/1000)*E$7 -> 0.039607425 | J50: 365 | K50: =I50*24*J50 -> 346.961043 | L50: =((((VLOOKUP($B50,'Steam water pres table May-2009'!$B$4:$I$240,8,FALSE)*$H50)/1000000)*(VLOOKUP($E$8,'CO2 Conversion Factors'!$A$3:$G$23,3,FALSE)))*24)*$J50 -> 18785.49215 | M50: =((((VLOOKUP($B50,'Steam water pres table May-2009'!$B$4:$I$240,8,FALSE)*$H50)/1000000)*(VLOOKUP($E$8,'CO2 Conversion Factors'!$A$3:$G$23,4,FALSE)))*24)*$J50 -> 14.76140484 | N50: =((((VLOOKUP($B50,'Steam water pres table May-2009'!$B$4:$I$240,8,FALSE)*$H50)/1000000)*(VLOOKUP($E$8,'CO2 Conversion Factors'!$A$3:$G$23,5,FALSE)))*24)*$J50 -> 160.4500526 | O50: =((((VLOOKUP($B50,'Steam water pres table May-2009'!$B$4:$I$240,8,FALSE)*$H50)/1000000)*(VLOOKUP($E$8,'CO2 Conversion Factors'!$A$3:$G$23,6,FALSE)))*24)*$J50 -> 1123.150368 | P50: =((((VLOOKUP($B50,'Steam water pres table May-2009'!$B$4:$I$240,8,FALSE)*$H50)/1000000)*(VLOOKUP($E$8,'CO2 Conversion Factors'!$A$3:$G$23,7,FALSE)))*24)*$J50 -> 0 | S50: XS | U50: 3.826
B51: 15 | D51: 29.696 | E51: 22.88 | F51: 0.1875 | G51: 0.03515625 | H51: 23.88672 | I51: 0.0597168 | J51: 365 | K51: 523.119168 | L51: =((((VLOOKUP($B51,'Steam water pres table May-2009'!$B$4:$I$240,8,FALSE)*$H51)/1000000)*(VLOOKUP($E$8,'CO2 Conversion Factors'!$A$3:$G$23,3,FALSE)))*24)*$J51 -> 28520.67123 | M51: =((((VLOOKUP($B51,'Steam water pres table May-2009'!$B$4:$I$240,8,FALSE)*$H51)/1000000)*(VLOOKUP($E$8,'CO2 Conversion Factors'!$A$3:$G$23,4,FALSE)))*24)*$J51 -> 22.41118682 | N51: =((((VLOOKUP($B51,'Steam water pres table May-2009'!$B$4:$I$240,8,FALSE)*$H51)/1000000)*(VLOOKUP($E$8,'CO2 Conversion Factors'!$A$3:$G$23,5,FALSE)))*24)*$J51 -> 243.5998567 | O51: =((((VLOOKUP($B51,'Steam water pres table May-2009'!$B$4:$I$240,8,FALSE)*$H51)/1000000)*(VLOOKUP($E$8,'CO2 Conversion Factors'!$A$3:$G$23,6,FALSE)))*24)*$J51 -> 1705.198997 | P51: =((((VLOOKUP($B51,'Steam water pres table May-2009'!$B$4:$I$240,8,FALSE)*$H51)/1000000)*(VLOOKUP($E$8,'CO2 Conversion Factors'!$A$3:$G$23,7,FALSE)))*24)*$J51 -> 0 | S51: XXS | U51: 3.152
B52: 25 | D52: 39.696 | E52: 22.88 | F52: 0.1875 | G52: 0.03515625 | H52: =D52*E52*G52 -> 31.93047 | I52: =(H52/1000)*E$7 -> 0.079826175 | J52: 365 | K52: =I52*24*J52 -> 699.277293 | L52: =((((VLOOKUP($B52,'Steam water pres table May-2009'!$B$4:$I$240,8,FALSE)*$H52)/1000000)*(VLOOKUP($E$8,'CO2 Conversion Factors'!$A$3:$G$23,3,FALSE)))*24)*$J52 -> 38311.55109 | M52: =((((VLOOKUP($B52,'Steam water pres table May-2009'!$B$4:$I$240,8,FALSE)*$H52)/1000000)*(VLOOKUP($E$8,'CO2 Conversion Factors'!$A$3:$G$23,4,FALSE)))*24)*$J52 -> 30.10473778 | N52: =((((VLOOKUP($B52,'Steam water pres table May-2009'!$B$4:$I$240,8,FALSE)*$H52)/1000000)*(VLOOKUP($E$8,'CO2 Conversion Factors'!$A$3:$G$23,5,FALSE)))*24)*$J52 -> 327.2254107 | O52: =((((VLOOKUP($B52,'Steam water pres table May-2009'!$B$4:$I$240,8,FALSE)*$H52)/1000000)*(VLOOKUP($E$8,'CO2 Conversion Factors'!$A$3:$G$23,6,FALSE)))*24)*$J52 -> 2290.577875 | P52: =((((VLOOKUP($B52,'Steam water pres table May-2009'!$B$4:$I$240,8,FALSE)*$H52)/1000000)*(VLOOKUP($E$8,'CO2 Conversion Factors'!$A$3:$G$23,7,FALSE)))*24)*$J52 -> 0 | R52: 5 | S52: STD | T52: 5.563 | U52: 5.047
B53: 30 | D53: 44.696 | E53: 22.88 | F53: 0.1875 | G53: 0.03515625 | H53: 35.952345 | I53: 0.0898808625 | J53: 365 | K53: 787.3563555 | L53: =((((VLOOKUP($B53,'Steam water pres table May-2009'!$B$4:$I$240,8,FALSE)*$H53)/1000000)*(VLOOKUP($E$8,'CO2 Conversion Factors'!$A$3:$G$23,3,FALSE)))*24)*$J53 -> 43223.08486 | M53: =((((VLOOKUP($B53,'Steam water pres table May-2009'!$B$4:$I$240,8,FALSE)*$H53)/1000000)*(VLOOKUP($E$8,'CO2 Conversion Factors'!$A$3:$G$23,4,FALSE)))*24)*$J53 -> 33.96415961 | N53: =((((VLOOKUP($B53,'Steam water pres table May-2009'!$B$4:$I$240,8,FALSE)*$H53)/1000000)*(VLOOKUP($E$8,'CO2 Conversion Factors'!$A$3:$G$23,5,FALSE)))*24)*$J53 -> 369.175648 | O53: =((((VLOOKUP($B53,'Steam water pres table May-2009'!$B$4:$I$240,8,FALSE)*$H53)/1000000)*(VLOOKUP($E$8,'CO2 Conversion Factors'!$A$3:$G$23,6,FALSE)))*24)*$J53 -> 2584.229536 | P53: =((((VLOOKUP($B53,'Steam water pres table May-2009'!$B$4:$I$240,8,FALSE)*$H53)/1000000)*(VLOOKUP($E$8,'CO2 Conversion Factors'!$A$3:$G$23,7,FALSE)))*24)*$J53 -> 0 | S53: XS | U53: 4.813
B54: 40 | D54: 54.696 | E54: 22.88 | F54: 0.1875 | G54: 0.03515625 | H54: 43.996095 | I54: 0.1099902375 | J54: 365 | K54: 963.5144805 | L54: =((((VLOOKUP($B54,'Steam water pres table May-2009'!$B$4:$I$240,8,FALSE)*$H54)/1000000)*(VLOOKUP($E$8,'CO2 Conversion Factors'!$A$3:$G$23,3,FALSE)))*24)*$J54 -> 53064.5615 | M54: =((((VLOOKUP($B54,'Steam water pres table May-2009'!$B$4:$I$240,8,FALSE)*$H54)/1000000)*(VLOOKUP($E$8,'CO2 Conversion Factors'!$A$3:$G$23,4,FALSE)))*24)*$J54 -> 41.6974689 | N54: =((((VLOOKUP($B54,'Steam water pres table May-2009'!$B$4:$I$240,8,FALSE)*$H54)/1000000)*(VLOOKUP($E$8,'CO2 Conversion Factors'!$A$3:$G$23,5,FALSE)))*24)*$J54 -> 453.2333576 | O54: =((((VLOOKUP($B54,'Steam water pres table May-2009'!$B$4:$I$240,8,FALSE)*$H54)/1000000)*(VLOOKUP($E$8,'CO2 Conversion Factors'!$A$3:$G$23,6,FALSE)))*24)*$J54 -> 3172.633503 | P54: =((((VLOOKUP($B54,'Steam water pres table May-2009'!$B$4:$I$240,8,FALSE)*$H54)/1000000)*(VLOOKUP($E$8,'CO2 Conversion Factors'!$A$3:$G$23,7,FALSE)))*24)*$J54 -> 0 | S54: XXS | U54: 4.063
B55: 50 | D55: 64.696 | E55: 22.88 | F55: 0.1875 | G55: 0.03515625 | H55: =D55*E55*G55 -> 52.039845 | I55: =(H55/1000)*E$7 -> 0.1300996125 | J55: 365 | K55: =I55*24*J55 -> 1139.672605 | L55: =((((VLOOKUP($B55,'Steam water pres table May-2009'!$B$4:$I$240,8,FALSE)*$H55)/1000000)*(VLOOKUP($E$8,'CO2 Conversion Factors'!$A$3:$G$23,3,FALSE)))*24)*$J55 -> 62938.14922 | M55: =((((VLOOKUP($B55,'Steam water pres table May-2009'!$B$4:$I$240,8,FALSE)*$H55)/1000000)*(VLOOKUP($E$8,'CO2 Conversion Factors'!$A$3:$G$23,4,FALSE)))*24)*$J55 -> 49.45601066 | N55: =((((VLOOKUP($B55,'Steam water pres table May-2009'!$B$4:$I$240,8,FALSE)*$H55)/1000000)*(VLOOKUP($E$8,'CO2 Conversion Factors'!$A$3:$G$23,5,FALSE)))*24)*$J55 -> 537.5653333 | O55: =((((VLOOKUP($B55,'Steam water pres table May-2009'!$B$4:$I$240,8,FALSE)*$H55)/1000000)*(VLOOKUP($E$8,'CO2 Conversion Factors'!$A$3:$G$23,6,FALSE)))*24)*$J55 -> 3762.957333 | P55: =((((VLOOKUP($B55,'Steam water pres table May-2009'!$B$4:$I$240,8,FALSE)*$H55)/1000000)*(VLOOKUP($E$8,'CO2 Conversion Factors'!$A$3:$G$23,7,FALSE)))*24)*$J55 -> 0 | R55: 6 | S55: STD | T55: 6.625 | U55: 6.065
B56: 75 | D56: 89.696 | E56: 22.88 | F56: 0.1875 | G56: 0.03515625 | H56: 72.14922 | I56: 0.18037305 | J56: 365 | K56: 1580.067918 | L56: =((((VLOOKUP($B56,'Steam water pres table May-2009'!$B$4:$I$240,8,FALSE)*$H56)/1000000)*(VLOOKUP($E$8,'CO2 Conversion Factors'!$A$3:$G$23,3,FALSE)))*24)*$J56 -> 87694.72255 | M56: =((((VLOOKUP($B56,'Steam water pres table May-2009'!$B$4:$I$240,8,FALSE)*$H56)/1000000)*(VLOOKUP($E$8,'CO2 Conversion Factors'!$A$3:$G$23,4,FALSE)))*24)*$J56 -> 68.90941642 | N56: =((((VLOOKUP($B56,'Steam water pres table May-2009'!$B$4:$I$240,8,FALSE)*$H56)/1000000)*(VLOOKUP($E$8,'CO2 Conversion Factors'!$A$3:$G$23,5,FALSE)))*24)*$J56 -> 749.0153958 | O56: =((((VLOOKUP($B56,'Steam water pres table May-2009'!$B$4:$I$240,8,FALSE)*$H56)/1000000)*(VLOOKUP($E$8,'CO2 Conversion Factors'!$A$3:$G$23,6,FALSE)))*24)*$J56 -> 5243.107771 | P56: =((((VLOOKUP($B56,'Steam water pres table May-2009'!$B$4:$I$240,8,FALSE)*$H56)/1000000)*(VLOOKUP($E$8,'CO2 Conversion Factors'!$A$3:$G$23,7,FALSE)))*24)*$J56 -> 0 | S56: XS | U56: 5.761
B57: 100 | D57: 114.696 | E57: 22.88 | F57: 0.1875 | G57: 0.03515625 | H57: 92.258595 | I57: 0.2306464875 | J57: 365 | K57: 2020.46323 | L57: =((((VLOOKUP($B57,'Steam water pres table May-2009'!$B$4:$I$240,8,FALSE)*$H57)/1000000)*(VLOOKUP($E$8,'CO2 Conversion Factors'!$A$3:$G$23,3,FALSE)))*24)*$J57 -> 112543.8041 | M57: =((((VLOOKUP($B57,'Steam water pres table May-2009'!$B$4:$I$240,8,FALSE)*$H57)/1000000)*(VLOOKUP($E$8,'CO2 Conversion Factors'!$A$3:$G$23,4,FALSE)))*24)*$J57 -> 88.43551396 | N57: =((((VLOOKUP($B57,'Steam water pres table May-2009'!$B$4:$I$240,8,FALSE)*$H57)/1000000)*(VLOOKUP($E$8,'CO2 Conversion Factors'!$A$3:$G$23,5,FALSE)))*24)*$J57 -> 961.2555865 | O57: =((((VLOOKUP($B57,'Steam water pres table May-2009'!$B$4:$I$240,8,FALSE)*$H57)/1000000)*(VLOOKUP($E$8,'CO2 Conversion Factors'!$A$3:$G$23,6,FALSE)))*24)*$J57 -> 6728.789106 | P57: =((((VLOOKUP($B57,'Steam water pres table May-2009'!$B$4:$I$240,8,FALSE)*$H57)/1000000)*(VLOOKUP($E$8,'CO2 Conversion Factors'!$A$3:$G$23,7,FALSE)))*24)*$J57 -> 0 | S57: XXS | U57: 4.897
B58: 150 | D58: =B58+14.696 -> 164.696 | E58: 22.88 | F58: 0.1875 | G58: 0.03515625 | H58: =D58*E58*G58 -> 132.477345 | I58: =(H58/1000)*E$7 -> 0.3311933625 | J58: 365 | K58: =I58*24*J58 -> 2901.253855 | L58: =((((VLOOKUP($B58,'Steam water pres table May-2009'!$B$4:$I$240,8,FALSE)*$H58)/1000000)*(VLOOKUP($E$8,'CO2 Conversion Factors'!$A$3:$G$23,3,FALSE)))*24)*$J58 -> 162377.3368 | M58: =((((VLOOKUP($B58,'Steam water pres table May-2009'!$B$4:$I$240,8,FALSE)*$H58)/1000000)*(VLOOKUP($E$8,'CO2 Conversion Factors'!$A$3:$G$23,4,FALSE)))*24)*$J58 -> 127.5940808 | N58: =((((VLOOKUP($B58,'Steam water pres table May-2009'!$B$4:$I$240,8,FALSE)*$H58)/1000000)*(VLOOKUP($E$8,'CO2 Conversion Factors'!$A$3:$G$23,5,FALSE)))*24)*$J58 -> 1386.892183 | O58: =((((VLOOKUP($B58,'Steam water pres table May-2009'!$B$4:$I$240,8,FALSE)*$H58)/1000000)*(VLOOKUP($E$8,'CO2 Conversion Factors'!$A$3:$G$23,6,FALSE)))*24)*$J58 -> 9708.245281 | P58: =((((VLOOKUP($B58,'Steam water pres table May-2009'!$B$4:$I$240,8,FALSE)*$H58)/1000000)*(VLOOKUP($E$8,'CO2 Conversion Factors'!$A$3:$G$23,7,FALSE)))*24)*$J58 -> 0 | R58: 8 | S58: STD | T58: 8.625 | U58: 7.981
B59: 250 | D59: =B59+14.696 -> 264.696 | E59: 22.88 | F59: 0.1875 | G59: 0.03515625 | H59: =D59*E59*G59 -> 212.914845 | I59: =(H59/1000)*E$7 -> 0.5322871125 | J59: 365 | K59: =I59*24*J59 -> 4662.835106 | L59: =((((VLOOKUP($B59,'Steam water pres table May-2009'!$B$4:$I$240,8,FALSE)*$H59)/1000000)*(VLOOKUP($E$8,'CO2 Conversion Factors'!$A$3:$G$23,3,FALSE)))*24)*$J59 -> 262423.836 | M59: =((((VLOOKUP($B59,'Steam water pres table May-2009'!$B$4:$I$240,8,FALSE)*$H59)/1000000)*(VLOOKUP($E$8,'CO2 Conversion Factors'!$A$3:$G$23,4,FALSE)))*24)*$J59 -> 206.2093689 | N59: =((((VLOOKUP($B59,'Steam water pres table May-2009'!$B$4:$I$240,8,FALSE)*$H59)/1000000)*(VLOOKUP($E$8,'CO2 Conversion Factors'!$A$3:$G$23,5,FALSE)))*24)*$J59 -> 2241.406184 | O59: =((((VLOOKUP($B59,'Steam water pres table May-2009'!$B$4:$I$240,8,FALSE)*$H59)/1000000)*(VLOOKUP($E$8,'CO2 Conversion Factors'!$A$3:$G$23,6,FALSE)))*24)*$J59 -> 15689.84329 | P59: =((((VLOOKUP($B59,'Steam water pres table May-2009'!$B$4:$I$240,8,FALSE)*$H59)/1000000)*(VLOOKUP($E$8,'CO2 Conversion Factors'!$A$3:$G$23,7,FALSE)))*24)*$J59 -> 0
B60: 300 | D60: =B60+14.696 -> 314.696 | E60: 22.88 | F60: 0.1875 | G60: 0.03515625 | H60: =D60*E60*G60 -> 253.133595 | I60: =(H60/1000)*E$7 -> 0.6328339875 | J60: 365 | K60: =I60*24*J60 -> 5543.62573 | L60: =((((VLOOKUP($B60,'Steam water pres table May-2009'!$B$4:$I$240,8,FALSE)*$H60)/1000000)*(VLOOKUP($E$8,'CO2 Conversion Factors'!$A$3:$G$23,3,FALSE)))*24)*$J60 -> 312371.0811 | M60: =((((VLOOKUP($B60,'Steam water pres table May-2009'!$B$4:$I$240,8,FALSE)*$H60)/1000000)*(VLOOKUP($E$8,'CO2 Conversion Factors'!$A$3:$G$23,4,FALSE)))*24)*$J60 -> 245.4572896 | N60: =((((VLOOKUP($B60,'Steam water pres table May-2009'!$B$4:$I$240,8,FALSE)*$H60)/1000000)*(VLOOKUP($E$8,'CO2 Conversion Factors'!$A$3:$G$23,5,FALSE)))*24)*$J60 -> 2668.014017 | O60: =((((VLOOKUP($B60,'Steam water pres table May-2009'!$B$4:$I$240,8,FALSE)*$H60)/1000000)*(VLOOKUP($E$8,'CO2 Conversion Factors'!$A$3:$G$23,6,FALSE)))*24)*$J60 -> 18676.09812 | P60: =((((VLOOKUP($B60,'Steam water pres table May-2009'!$B$4:$I$240,8,FALSE)*$H60)/1000000)*(VLOOKUP($E$8,'CO2 Conversion Factors'!$A$3:$G$23,7,FALSE)))*24)*$J60 -> 0 | S60: XS | U60: 7.825
B61: 400 | D61: 414.696 | E61: 22.88 | F61: 0.1875 | G61: 0.03515625 | H61: 333.571095 | I61: 0.8339277375 | J61: 365 | K61: 7305.206981 | L61: =((((VLOOKUP($B61,'Steam water pres table May-2009'!$B$4:$I$240,8,FALSE)*$H61)/1000000)*(VLOOKUP($E$8,'CO2 Conversion Factors'!$A$3:$G$23,3,FALSE)))*24)*$J61 -> 411991.522 | M61: =((((VLOOKUP($B61,'Steam water pres table May-2009'!$B$4:$I$240,8,FALSE)*$H61)/1000000)*(VLOOKUP($E$8,'CO2 Conversion Factors'!$A$3:$G$23,4,FALSE)))*24)*$J61 -> 323.7377863 | N61: =((((VLOOKUP($B61,'Steam water pres table May-2009'!$B$4:$I$240,8,FALSE)*$H61)/1000000)*(VLOOKUP($E$8,'CO2 Conversion Factors'!$A$3:$G$23,5,FALSE)))*24)*$J61 -> 3518.888982 | O61: =((((VLOOKUP($B61,'Steam water pres table May-2009'!$B$4:$I$240,8,FALSE)*$H61)/1000000)*(VLOOKUP($E$8,'CO2 Conversion Factors'!$A$3:$G$23,6,FALSE)))*24)*$J61 -> 24632.22287 | P61: =((((VLOOKUP($B61,'Steam water pres table May-2009'!$B$4:$I$240,8,FALSE)*$H61)/1000000)*(VLOOKUP($E$8,'CO2 Conversion Factors'!$A$3:$G$23,7,FALSE)))*24)*$J61 -> 0 | S61: XXS | U61: 6.875
B62: 600 | D62: 614.696 | E62: 22.88 | F62: 0.1875 | G62: 0.03515625 | H62: 494.446095 | I62: 1.236115237 | J62: 365 | K62: 10828.36948 | L62: =((((VLOOKUP($B62,'Steam water pres table May-2009'!$B$4:$I$240,8,FALSE)*$H62)/1000000)*(VLOOKUP($E$8,'CO2 Conversion Factors'!$A$3:$G$23,3,FALSE)))*24)*$J62 -> 610002.5994 | M62: =((((VLOOKUP($B62,'Steam water pres table May-2009'!$B$4:$I$240,8,FALSE)*$H62)/1000000)*(VLOOKUP($E$8,'CO2 Conversion Factors'!$A$3:$G$23,4,FALSE)))*24)*$J62 -> 479.332415 | N62: =((((VLOOKUP($B62,'Steam water pres table May-2009'!$B$4:$I$240,8,FALSE)*$H62)/1000000)*(VLOOKUP($E$8,'CO2 Conversion Factors'!$A$3:$G$23,5,FALSE)))*24)*$J62 -> 5210.134946 | O62: =((((VLOOKUP($B62,'Steam water pres table May-2009'!$B$4:$I$240,8,FALSE)*$H62)/1000000)*(VLOOKUP($E$8,'CO2 Conversion Factors'!$A$3:$G$23,6,FALSE)))*24)*$J62 -> 36470.94462 | P62: =((((VLOOKUP($B62,'Steam water pres table May-2009'!$B$4:$I$240,8,FALSE)*$H62)/1000000)*(VLOOKUP($E$8,'CO2 Conversion Factors'!$A$3:$G$23,7,FALSE)))*24)*$J62 -> 0
R63: 10 | S63: STD | T63: 10.75 | U63: 10.02
B64: 1/4" Leak | S64: XS | U64: 9.75
B65: Pressure | D65: Abs Pressure | E65: Constant | F65: Diameter | G65: D^2 | H65: Steam Loss (pph) | I65: Cost / Hour | J65: Days / Year | K65: Cost / Year | L65: CO2 Emissions / Year | M65: NOX | N65: SO2 | O65: Particulates | P65: Mercury
B66: 5 | D66: =B66+14.696 -> 19.696 | E66: 22.88 | F66: =4/16 -> 0.25 | G66: =F66^2 -> 0.0625 | H66: =D66*E66*G66 -> 28.16528 | I66: =(H66/1000)*E$7 -> 0.0704132 | J66: 365 | K66: =I66*24*J66 -> 616.819632 | L66: =((((VLOOKUP($B66,'Steam water pres table May-2009'!$B$4:$I$240,8,FALSE)*$H66)/1000000)*(VLOOKUP($E$8,'CO2 Conversion Factors'!$A$3:$G$23,3,FALSE)))*24)*$J66 -> 33396.4305 | M66: =((((VLOOKUP($B66,'Steam water pres table May-2009'!$B$4:$I$240,8,FALSE)*$H66)/1000000)*(VLOOKUP($E$8,'CO2 Conversion Factors'!$A$3:$G$23,4,FALSE)))*24)*$J66 -> 26.24249749 | N66: =((((VLOOKUP($B66,'Steam water pres table May-2009'!$B$4:$I$240,8,FALSE)*$H66)/1000000)*(VLOOKUP($E$8,'CO2 Conversion Factors'!$A$3:$G$23,5,FALSE)))*24)*$J66 -> 285.2445379 | O66: =((((VLOOKUP($B66,'Steam water pres table May-2009'!$B$4:$I$240,8,FALSE)*$H66)/1000000)*(VLOOKUP($E$8,'CO2 Conversion Factors'!$A$3:$G$23,6,FALSE)))*24)*$J66 -> 1996.711765 | P66: =((((VLOOKUP($B66,'Steam water pres table May-2009'!$B$4:$I$240,8,FALSE)*$H66)/1000000)*(VLOOKUP($E$8,'CO2 Conversion Factors'!$A$3:$G$23,7,FALSE)))*24)*$J66 -> 0 | S66: XXS
B67: 15 | D67: 29.696 | E67: 22.88 | F67: 0.25 | G67: 0.0625 | H67: 42.46528 | I67: 0.1061632 | J67: 365 | K67: 929.989632 | L67: =((((VLOOKUP($B67,'Steam water pres table May-2009'!$B$4:$I$240,8,FALSE)*$H67)/1000000)*(VLOOKUP($E$8,'CO2 Conversion Factors'!$A$3:$G$23,3,FALSE)))*24)*$J67 -> 50703.41551 | M67: =((((VLOOKUP($B67,'Steam water pres table May-2009'!$B$4:$I$240,8,FALSE)*$H67)/1000000)*(VLOOKUP($E$8,'CO2 Conversion Factors'!$A$3:$G$23,4,FALSE)))*24)*$J67 -> 39.8421099 | N67: =((((VLOOKUP($B67,'Steam water pres table May-2009'!$B$4:$I$240,8,FALSE)*$H67)/1000000)*(VLOOKUP($E$8,'CO2 Conversion Factors'!$A$3:$G$23,5,FALSE)))*24)*$J67 -> 433.066412 | O67: =((((VLOOKUP($B67,'Steam water pres table May-2009'!$B$4:$I$240,8,FALSE)*$H67)/1000000)*(VLOOKUP($E$8,'CO2 Conversion Factors'!$A$3:$G$23,6,FALSE)))*24)*$J67 -> 3031.464884 | P67: =((((VLOOKUP($B67,'Steam water pres table May-2009'!$B$4:$I$240,8,FALSE)*$H67)/1000000)*(VLOOKUP($E$8,'CO2 Conversion Factors'!$A$3:$G$23,7,FALSE)))*24)*$J67 -> 0 | R67: 12 | S67: STD | T67: 12.75 | U67: 12
B68: 25 | D68: 39.696 | E68: 22.88 | F68: 0.25 | G68: 0.0625 | H68: =D68*E68*G68 -> 56.76528 | I68: =(H68/1000)*E$7 -> 0.1419132 | J68: 365 | K68: =I68*24*J68 -> 1243.159632 | L68: =((((VLOOKUP($B68,'Steam water pres table May-2009'!$B$4:$I$240,8,FALSE)*$H68)/1000000)*(VLOOKUP($E$8,'CO2 Conversion Factors'!$A$3:$G$23,3,FALSE)))*24)*$J68 -> 68109.42415 | M68: =((((VLOOKUP($B68,'Steam water pres table May-2009'!$B$4:$I$240,8,FALSE)*$H68)/1000000)*(VLOOKUP($E$8,'CO2 Conversion Factors'!$A$3:$G$23,4,FALSE)))*24)*$J68 -> 53.51953384 | N68: =((((VLOOKUP($B68,'Steam water pres table May-2009'!$B$4:$I$240,8,FALSE)*$H68)/1000000)*(VLOOKUP($E$8,'CO2 Conversion Factors'!$A$3:$G$23,5,FALSE)))*24)*$J68 -> 581.7340635 | O68: =((((VLOOKUP($B68,'Steam water pres table May-2009'!$B$4:$I$240,8,FALSE)*$H68)/1000000)*(VLOOKUP($E$8,'CO2 Conversion Factors'!$A$3:$G$23,6,FALSE)))*24)*$J68 -> 4072.138444 | P68: =((((VLOOKUP($B68,'Steam water pres table May-2009'!$B$4:$I$240,8,FALSE)*$H68)/1000000)*(VLOOKUP($E$8,'CO2 Conversion Factors'!$A$3:$G$23,7,FALSE)))*24)*$J68 -> 0
B69: 30 | D69: 44.696 | E69: 22.88 | F69: 0.25 | G69: 0.0625 | H69: 63.91528 | I69: 0.1597882 | J69: 365 | K69: 1399.744632 | L69: =((((VLOOKUP($B69,'Steam water pres table May-2009'!$B$4:$I$240,8,FALSE)*$H69)/1000000)*(VLOOKUP($E$8,'CO2 Conversion Factors'!$A$3:$G$23,3,FALSE)))*24)*$J69 -> 76841.03976 | M69: =((((VLOOKUP($B69,'Steam water pres table May-2009'!$B$4:$I$240,8,FALSE)*$H69)/1000000)*(VLOOKUP($E$8,'CO2 Conversion Factors'!$A$3:$G$23,4,FALSE)))*24)*$J69 -> 60.3807282 | N69: =((((VLOOKUP($B69,'Steam water pres table May-2009'!$B$4:$I$240,8,FALSE)*$H69)/1000000)*(VLOOKUP($E$8,'CO2 Conversion Factors'!$A$3:$G$23,5,FALSE)))*24)*$J69 -> 656.3122631 | O69: =((((VLOOKUP($B69,'Steam water pres table May-2009'!$B$4:$I$240,8,FALSE)*$H69)/1000000)*(VLOOKUP($E$8,'CO2 Conversion Factors'!$A$3:$G$23,6,FALSE)))*24)*$J69 -> 4594.185841 | P69: =((((VLOOKUP($B69,'Steam water pres table May-2009'!$B$4:$I$240,8,FALSE)*$H69)/1000000)*(VLOOKUP($E$8,'CO2 Conversion Factors'!$A$3:$G$23,7,FALSE)))*24)*$J69 -> 0 | S69: XS | U69: 11.75
B70: 40 | D70: 54.696 | E70: 22.88 | F70: 0.25 | G70: 0.0625 | H70: 78.21528 | I70: 0.1955382 | J70: 365 | K70: 1712.914632 | L70: =((((VLOOKUP($B70,'Steam water pres table May-2009'!$B$4:$I$240,8,FALSE)*$H70)/1000000)*(VLOOKUP($E$8,'CO2 Conversion Factors'!$A$3:$G$23,3,FALSE)))*24)*$J70 -> 94336.99823 | M70: =((((VLOOKUP($B70,'Steam water pres table May-2009'!$B$4:$I$240,8,FALSE)*$H70)/1000000)*(VLOOKUP($E$8,'CO2 Conversion Factors'!$A$3:$G$23,4,FALSE)))*24)*$J70 -> 74.12883359 | N70: =((((VLOOKUP($B70,'Steam water pres table May-2009'!$B$4:$I$240,8,FALSE)*$H70)/1000000)*(VLOOKUP($E$8,'CO2 Conversion Factors'!$A$3:$G$23,5,FALSE)))*24)*$J70 -> 805.7481912 | O70: =((((VLOOKUP($B70,'Steam water pres table May-2009'!$B$4:$I$240,8,FALSE)*$H70)/1000000)*(VLOOKUP($E$8,'CO2 Conversion Factors'!$A$3:$G$23,6,FALSE)))*24)*$J70 -> 5640.237339 | P70: =((((VLOOKUP($B70,'Steam water pres table May-2009'!$B$4:$I$240,8,FALSE)*$H70)/1000000)*(VLOOKUP($E$8,'CO2 Conversion Factors'!$A$3:$G$23,7,FALSE)))*24)*$J70 -> 0 | S70: XXS
B71: 50 | D71: 64.696 | E71: 22.88 | F71: 0.25 | G71: 0.0625 | H71: =D71*E71*G71 -> 92.51528 | I71: =(H71/1000)*E$7 -> 0.2312882 | J71: 365 | K71: =I71*24*J71 -> 2026.084632 | L71: =((((VLOOKUP($B71,'Steam water pres table May-2009'!$B$4:$I$240,8,FALSE)*$H71)/1000000)*(VLOOKUP($E$8,'CO2 Conversion Factors'!$A$3:$G$23,3,FALSE)))*24)*$J71 -> 111890.0431 | M71: =((((VLOOKUP($B71,'Steam water pres table May-2009'!$B$4:$I$240,8,FALSE)*$H71)/1000000)*(VLOOKUP($E$8,'CO2 Conversion Factors'!$A$3:$G$23,4,FALSE)))*24)*$J71 -> 87.92179673 | N71: =((((VLOOKUP($B71,'Steam water pres table May-2009'!$B$4:$I$240,8,FALSE)*$H71)/1000000)*(VLOOKUP($E$8,'CO2 Conversion Factors'!$A$3:$G$23,5,FALSE)))*24)*$J71 -> 955.6717036 | O71: =((((VLOOKUP($B71,'Steam water pres table May-2009'!$B$4:$I$240,8,FALSE)*$H71)/1000000)*(VLOOKUP($E$8,'CO2 Conversion Factors'!$A$3:$G$23,6,FALSE)))*24)*$J71 -> 6689.701925 | P71: =((((VLOOKUP($B71,'Steam water pres table May-2009'!$B$4:$I$240,8,FALSE)*$H71)/1000000)*(VLOOKUP($E$8,'CO2 Conversion Factors'!$A$3:$G$23,7,FALSE)))*24)*$J71 -> 0 | R71: >12 OD is nominal size
B72: 75 | D72: 89.696 | E72: 22.88 | F72: 0.25 | G72: 0.0625 | H72: 128.26528 | I72: 0.3206632 | J72: 365 | K72: 2809.009632 | L72: =((((VLOOKUP($B72,'Steam water pres table May-2009'!$B$4:$I$240,8,FALSE)*$H72)/1000000)*(VLOOKUP($E$8,'CO2 Conversion Factors'!$A$3:$G$23,3,FALSE)))*24)*$J72 -> 155901.729 | M72: =((((VLOOKUP($B72,'Steam water pres table May-2009'!$B$4:$I$240,8,FALSE)*$H72)/1000000)*(VLOOKUP($E$8,'CO2 Conversion Factors'!$A$3:$G$23,4,FALSE)))*24)*$J72 -> 122.5056292 | N72: =((((VLOOKUP($B72,'Steam water pres table May-2009'!$B$4:$I$240,8,FALSE)*$H72)/1000000)*(VLOOKUP($E$8,'CO2 Conversion Factors'!$A$3:$G$23,5,FALSE)))*24)*$J72 -> 1331.582926 | O72: =((((VLOOKUP($B72,'Steam water pres table May-2009'!$B$4:$I$240,8,FALSE)*$H72)/1000000)*(VLOOKUP($E$8,'CO2 Conversion Factors'!$A$3:$G$23,6,FALSE)))*24)*$J72 -> 9321.080482 | P72: =((((VLOOKUP($B72,'Steam water pres table May-2009'!$B$4:$I$240,8,FALSE)*$H72)/1000000)*(VLOOKUP($E$8,'CO2 Conversion Factors'!$A$3:$G$23,7,FALSE)))*24)*$J72 -> 0
B73: 100 | D73: 114.696 | E73: 22.88 | F73: 0.25 | G73: 0.0625 | H73: 164.01528 | I73: 0.4100382 | J73: 365 | K73: 3591.934632 | L73: =((((VLOOKUP($B73,'Steam water pres table May-2009'!$B$4:$I$240,8,FALSE)*$H73)/1000000)*(VLOOKUP($E$8,'CO2 Conversion Factors'!$A$3:$G$23,3,FALSE)))*24)*$J73 -> 200077.8739 | M73: =((((VLOOKUP($B73,'Steam water pres table May-2009'!$B$4:$I$240,8,FALSE)*$H73)/1000000)*(VLOOKUP($E$8,'CO2 Conversion Factors'!$A$3:$G$23,4,FALSE)))*24)*$J73 -> 157.2186915 | N73: =((((VLOOKUP($B73,'Steam water pres table May-2009'!$B$4:$I$240,8,FALSE)*$H73)/1000000)*(VLOOKUP($E$8,'CO2 Conversion Factors'!$A$3:$G$23,5,FALSE)))*24)*$J73 -> 1708.898821 | O73: =((((VLOOKUP($B73,'Steam water pres table May-2009'!$B$4:$I$240,8,FALSE)*$H73)/1000000)*(VLOOKUP($E$8,'CO2 Conversion Factors'!$A$3:$G$23,6,FALSE)))*24)*$J73 -> 11962.29174 | P73: =((((VLOOKUP($B73,'Steam water pres table May-2009'!$B$4:$I$240,8,FALSE)*$H73)/1000000)*(VLOOKUP($E$8,'CO2 Conversion Factors'!$A$3:$G$23,7,FALSE)))*24)*$J73 -> 0 | R73: STD = 0.375 wall thickness
B74: 150 | D74: =B74+14.696 -> 164.696 | E74: 22.88 | F74: 0.25 | G74: 0.0625 | H74: =D74*E74*G74 -> 235.51528 | I74: =(H74/1000)*E$7 -> 0.5887882 | J74: 365 | K74: =I74*24*J74 -> 5157.784632 | L74: =((((VLOOKUP($B74,'Steam water pres table May-2009'!$B$4:$I$240,8,FALSE)*$H74)/1000000)*(VLOOKUP($E$8,'CO2 Conversion Factors'!$A$3:$G$23,3,FALSE)))*24)*$J74 -> 288670.821 | M74: =((((VLOOKUP($B74,'Steam water pres table May-2009'!$B$4:$I$240,8,FALSE)*$H74)/1000000)*(VLOOKUP($E$8,'CO2 Conversion Factors'!$A$3:$G$23,4,FALSE)))*24)*$J74 -> 226.8339215 | N74: =((((VLOOKUP($B74,'Steam water pres table May-2009'!$B$4:$I$240,8,FALSE)*$H74)/1000000)*(VLOOKUP($E$8,'CO2 Conversion Factors'!$A$3:$G$23,5,FALSE)))*24)*$J74 -> 2465.586103 | O74: =((((VLOOKUP($B74,'Steam water pres table May-2009'!$B$4:$I$240,8,FALSE)*$H74)/1000000)*(VLOOKUP($E$8,'CO2 Conversion Factors'!$A$3:$G$23,6,FALSE)))*24)*$J74 -> 17259.10272 | P74: =((((VLOOKUP($B74,'Steam water pres table May-2009'!$B$4:$I$240,8,FALSE)*$H74)/1000000)*(VLOOKUP($E$8,'CO2 Conversion Factors'!$A$3:$G$23,7,FALSE)))*24)*$J74 -> 0 | R74: XS = 0.500 wall thickness
B75: 250 | D75: =B75+14.696 -> 264.696 | E75: 22.88 | F75: 0.25 | G75: 0.0625 | H75: =D75*E75*G75 -> 378.51528 | I75: =(H75/1000)*E$7 -> 0.9462882 | J75: 365 | K75: =I75*24*J75 -> 8289.484632 | L75: =((((VLOOKUP($B75,'Steam water pres table May-2009'!$B$4:$I$240,8,FALSE)*$H75)/1000000)*(VLOOKUP($E$8,'CO2 Conversion Factors'!$A$3:$G$23,3,FALSE)))*24)*$J75 -> 466531.264 | M75: =((((VLOOKUP($B75,'Steam water pres table May-2009'!$B$4:$I$240,8,FALSE)*$H75)/1000000)*(VLOOKUP($E$8,'CO2 Conversion Factors'!$A$3:$G$23,4,FALSE)))*24)*$J75 -> 366.5944336 | N75: =((((VLOOKUP($B75,'Steam water pres table May-2009'!$B$4:$I$240,8,FALSE)*$H75)/1000000)*(VLOOKUP($E$8,'CO2 Conversion Factors'!$A$3:$G$23,5,FALSE)))*24)*$J75 -> 3984.722105 | O75: =((((VLOOKUP($B75,'Steam water pres table May-2009'!$B$4:$I$240,8,FALSE)*$H75)/1000000)*(VLOOKUP($E$8,'CO2 Conversion Factors'!$A$3:$G$23,6,FALSE)))*24)*$J75 -> 27893.05473 | P75: =((((VLOOKUP($B75,'Steam water pres table May-2009'!$B$4:$I$240,8,FALSE)*$H75)/1000000)*(VLOOKUP($E$8,'CO2 Conversion Factors'!$A$3:$G$23,7,FALSE)))*24)*$J75 -> 0
B76: 300 | D76: =B76+14.696 -> 314.696 | E76: 22.88 | F76: 0.25 | G76: 0.0625 | H76: =D76*E76*G76 -> 450.01528 | I76: =(H76/1000)*E$7 -> 1.1250382 | J76: 365 | K76: =I76*24*J76 -> 9855.334632 | L76: =((((VLOOKUP($B76,'Steam water pres table May-2009'!$B$4:$I$240,8,FALSE)*$H76)/1000000)*(VLOOKUP($E$8,'CO2 Conversion Factors'!$A$3:$G$23,3,FALSE)))*24)*$J76 -> 555326.3664 | M76: =((((VLOOKUP($B76,'Steam water pres table May-2009'!$B$4:$I$240,8,FALSE)*$H76)/1000000)*(VLOOKUP($E$8,'CO2 Conversion Factors'!$A$3:$G$23,4,FALSE)))*24)*$J76 -> 436.3685148 | N76: =((((VLOOKUP($B76,'Steam water pres table May-2009'!$B$4:$I$240,8,FALSE)*$H76)/1000000)*(VLOOKUP($E$8,'CO2 Conversion Factors'!$A$3:$G$23,5,FALSE)))*24)*$J76 -> 4743.13603 | O76: =((((VLOOKUP($B76,'Steam water pres table May-2009'!$B$4:$I$240,8,FALSE)*$H76)/1000000)*(VLOOKUP($E$8,'CO2 Conversion Factors'!$A$3:$G$23,6,FALSE)))*24)*$J76 -> 33201.95221 | P76: =((((VLOOKUP($B76,'Steam water pres table May-2009'!$B$4:$I$240,8,FALSE)*$H76)/1000000)*(VLOOKUP($E$8,'CO2 Conversion Factors'!$A$3:$G$23,7,FALSE)))*24)*$J76 -> 0
B77: 400 | D77: 414.696 | E77: 22.88 | F77: 0.25 | G77: 0.0625 | H77: =D77*E77*G77 -> 593.01528 | I77: =(H77/1000)*E$7 -> 1.4825382 | J77: 365 | K77: =I77*24*J77 -> 12987.03463 | L77: =((((VLOOKUP($B77,'Steam water pres table May-2009'!$B$4:$I$240,8,FALSE)*$H77)/1000000)*(VLOOKUP($E$8,'CO2 Conversion Factors'!$A$3:$G$23,3,FALSE)))*24)*$J77 -> 732429.3724 | M77: =((((VLOOKUP($B77,'Steam water pres table May-2009'!$B$4:$I$240,8,FALSE)*$H77)/1000000)*(VLOOKUP($E$8,'CO2 Conversion Factors'!$A$3:$G$23,4,FALSE)))*24)*$J77 -> 575.5338423 | N77: =((((VLOOKUP($B77,'Steam water pres table May-2009'!$B$4:$I$240,8,FALSE)*$H77)/1000000)*(VLOOKUP($E$8,'CO2 Conversion Factors'!$A$3:$G$23,5,FALSE)))*24)*$J77 -> 6255.802634 | O77: =((((VLOOKUP($B77,'Steam water pres table May-2009'!$B$4:$I$240,8,FALSE)*$H77)/1000000)*(VLOOKUP($E$8,'CO2 Conversion Factors'!$A$3:$G$23,6,FALSE)))*24)*$J77 -> 43790.61844 | P77: =((((VLOOKUP($B77,'Steam water pres table May-2009'!$B$4:$I$240,8,FALSE)*$H77)/1000000)*(VLOOKUP($E$8,'CO2 Conversion Factors'!$A$3:$G$23,7,FALSE)))*24)*$J77 -> 0
B78: 600 | D78: 614.696 | E78: 22.88 | F78: 0.25 | G78: 0.0625 | H78: 879.01528 | I78: 2.1975382 | J78: 365 | K78: 19250.43463 | L78: =((((VLOOKUP($B78,'Steam water pres table May-2009'!$B$4:$I$240,8,FALSE)*$H78)/1000000)*(VLOOKUP($E$8,'CO2 Conversion Factors'!$A$3:$G$23,3,FALSE)))*24)*$J78 -> 1084449.066 | M78: =((((VLOOKUP($B78,'Steam water pres table May-2009'!$B$4:$I$240,8,FALSE)*$H78)/1000000)*(VLOOKUP($E$8,'CO2 Conversion Factors'!$A$3:$G$23,4,FALSE)))*24)*$J78 -> 852.1465156 | N78: =((((VLOOKUP($B78,'Steam water pres table May-2009'!$B$4:$I$240,8,FALSE)*$H78)/1000000)*(VLOOKUP($E$8,'CO2 Conversion Factors'!$A$3:$G$23,5,FALSE)))*24)*$J78 -> 9262.462126 | O78: =((((VLOOKUP($B78,'Steam water pres table May-2009'!$B$4:$I$240,8,FALSE)*$H78)/1000000)*(VLOOKUP($E$8,'CO2 Conversion Factors'!$A$3:$G$23,6,FALSE)))*24)*$J78 -> 64837.23488 | P78: =((((VLOOKUP($B78,'Steam water pres table May-2009'!$B$4:$I$240,8,FALSE)*$H78)/1000000)*(VLOOKUP($E$8,'CO2 Conversion Factors'!$A$3:$G$23,7,FALSE)))*24)*$J78 -> 0
B80: 3/8" Leak
B81: Pressure | D81: Abs Pressure | E81: Constant | F81: Diameter | G81: D^2 | H81: Steam Loss (pph) | I81: Cost / Hour | J81: Days / Year | K81: Cost / Year | L81: CO2 Emissions / Year | M81: NOX | N81: SO2 | O81: Particulates | P81: Mercury
B82: 5 | D82: =B82+14.696 -> 19.696 | E82: 22.88 | F82: 0.375 | G82: =F82^2 -> 0.140625 | H82: =D82*E82*G82 -> 63.37188 | I82: =(H82/1000)*E$7 -> 0.1584297 | J82: 365 | K82: =I82*24*J82 -> 1387.844172 | L82: =((((VLOOKUP($B82,'Steam water pres table May-2009'!$B$4:$I$240,8,FALSE)*$H82)/1000000)*(VLOOKUP($E$8,'CO2 Conversion Factors'!$A$3:$G$23,3,FALSE)))*24)*$J82 -> 75141.96862 | M82: =((((VLOOKUP($B82,'Steam water pres table May-2009'!$B$4:$I$240,8,FALSE)*$H82)/1000000)*(VLOOKUP($E$8,'CO2 Conversion Factors'!$A$3:$G$23,4,FALSE)))*24)*$J82 -> 59.04561935 | N82: =((((VLOOKUP($B82,'Steam water pres table May-2009'!$B$4:$I$240,8,FALSE)*$H82)/1000000)*(VLOOKUP($E$8,'CO2 Conversion Factors'!$A$3:$G$23,5,FALSE)))*24)*$J82 -> 641.8002103 | O82: =((((VLOOKUP($B82,'Steam water pres table May-2009'!$B$4:$I$240,8,FALSE)*$H82)/1000000)*(VLOOKUP($E$8,'CO2 Conversion Factors'!$A$3:$G$23,6,FALSE)))*24)*$J82 -> 4492.601472 | P82: =((((VLOOKUP($B82,'Steam water pres table May-2009'!$B$4:$I$240,8,FALSE)*$H82)/1000000)*(VLOOKUP($E$8,'CO2 Conversion Factors'!$A$3:$G$23,7,FALSE)))*24)*$J82 -> 0
B83: 15 | D83: 29.696 | E83: 22.88 | F83: 0.375 | G83: 0.140625 | H83: 95.54688 | I83: 0.2388672 | J83: 365 | K83: 2092.476672 | L83: =((((VLOOKUP($B83,'Steam water pres table May-2009'!$B$4:$I$240,8,FALSE)*$H83)/1000000)*(VLOOKUP($E$8,'CO2 Conversion Factors'!$A$3:$G$23,3,FALSE)))*24)*$J83 -> 114082.6849 | M83: =((((VLOOKUP($B83,'Steam water pres table May-2009'!$B$4:$I$240,8,FALSE)*$H83)/1000000)*(VLOOKUP($E$8,'CO2 Conversion Factors'!$A$3:$G$23,4,FALSE)))*24)*$J83 -> 89.64474727 | N83: =((((VLOOKUP($B83,'Steam water pres table May-2009'!$B$4:$I$240,8,FALSE)*$H83)/1000000)*(VLOOKUP($E$8,'CO2 Conversion Factors'!$A$3:$G$23,5,FALSE)))*24)*$J83 -> 974.3994269 | O83: =((((VLOOKUP($B83,'Steam water pres table May-2009'!$B$4:$I$240,8,FALSE)*$H83)/1000000)*(VLOOKUP($E$8,'CO2 Conversion Factors'!$A$3:$G$23,6,FALSE)))*24)*$J83 -> 6820.795988 | P83: =((((VLOOKUP($B83,'Steam water pres table May-2009'!$B$4:$I$240,8,FALSE)*$H83)/1000000)*(VLOOKUP($E$8,'CO2 Conversion Factors'!$A$3:$G$23,7,FALSE)))*24)*$J83 -> 0
B84: 25 | D84: 39.696 | E84: 22.88 | F84: 0.375 | G84: 0.140625 | H84: =D84*E84*G84 -> 127.72188 | I84: =(H84/1000)*E$7 -> 0.3193047 | J84: 365 | K84: =I84*24*J84 -> 2797.109172 | L84: =((((VLOOKUP($B84,'Steam water pres table May-2009'!$B$4:$I$240,8,FALSE)*$H84)/1000000)*(VLOOKUP($E$8,'CO2 Conversion Factors'!$A$3:$G$23,3,FALSE)))*24)*$J84 -> 153246.2043 | M84: =((((VLOOKUP($B84,'Steam water pres table May-2009'!$B$4:$I$240,8,FALSE)*$H84)/1000000)*(VLOOKUP($E$8,'CO2 Conversion Factors'!$A$3:$G$23,4,FALSE)))*24)*$J84 -> 120.4189511 | N84: =((((VLOOKUP($B84,'Steam water pres table May-2009'!$B$4:$I$240,8,FALSE)*$H84)/1000000)*(VLOOKUP($E$8,'CO2 Conversion Factors'!$A$3:$G$23,5,FALSE)))*24)*$J84 -> 1308.901643 | O84: =((((VLOOKUP($B84,'Steam water pres table May-2009'!$B$4:$I$240,8,FALSE)*$H84)/1000000)*(VLOOKUP($E$8,'CO2 Conversion Factors'!$A$3:$G$23,6,FALSE)))*24)*$J84 -> 9162.3115 | P84: =((((VLOOKUP($B84,'Steam water pres table May-2009'!$B$4:$I$240,8,FALSE)*$H84)/1000000)*(VLOOKUP($E$8,'CO2 Conversion Factors'!$A$3:$G$23,7,FALSE)))*24)*$J84 -> 0
B85: 30 | D85: 44.696 | E85: 22.88 | F85: 0.375 | G85: 0.140625 | H85: 143.80938 | I85: 0.35952345 | J85: 365 | K85: 3149.425422 | L85: =((((VLOOKUP($B85,'Steam water pres table May-2009'!$B$4:$I$240,8,FALSE)*$H85)/1000000)*(VLOOKUP($E$8,'CO2 Conversion Factors'!$A$3:$G$23,3,FALSE)))*24)*$J85 -> 172892.3395 | M85: =((((VLOOKUP($B85,'Steam water pres table May-2009'!$B$4:$I$240,8,FALSE)*$H85)/1000000)*(VLOOKUP($E$8,'CO2 Conversion Factors'!$A$3:$G$23,4,FALSE)))*24)*$J85 -> 135.8566385 | N85: =((((VLOOKUP($B85,'Steam water pres table May-2009'!$B$4:$I$240,8,FALSE)*$H85)/1000000)*(VLOOKUP($E$8,'CO2 Conversion Factors'!$A$3:$G$23,5,FALSE)))*24)*$J85 -> 1476.702592 | O85: =((((VLOOKUP($B85,'Steam water pres table May-2009'!$B$4:$I$240,8,FALSE)*$H85)/1000000)*(VLOOKUP($E$8,'CO2 Conversion Factors'!$A$3:$G$23,6,FALSE)))*24)*$J85 -> 10336.91814 | P85: =((((VLOOKUP($B85,'Steam water pres table May-2009'!$B$4:$I$240,8,FALSE)*$H85)/1000000)*(VLOOKUP($E$8,'CO2 Conversion Factors'!$A$3:$G$23,7,FALSE)))*24)*$J85 -> 0
B86: 40 | D86: 54.696 | E86: 22.88 | F86: 0.375 | G86: 0.140625 | H86: 175.98438 | I86: 0.43996095 | J86: 365 | K86: 3854.057922 | L86: =((((VLOOKUP($B86,'Steam water pres table May-2009'!$B$4:$I$240,8,FALSE)*$H86)/1000000)*(VLOOKUP($E$8,'CO2 Conversion Factors'!$A$3:$G$23,3,FALSE)))*24)*$J86 -> 212258.246 | M86: =((((VLOOKUP($B86,'Steam water pres table May-2009'!$B$4:$I$240,8,FALSE)*$H86)/1000000)*(VLOOKUP($E$8,'CO2 Conversion Factors'!$A$3:$G$23,4,FALSE)))*24)*$J86 -> 166.7898756 | N86: =((((VLOOKUP($B86,'Steam water pres table May-2009'!$B$4:$I$240,8,FALSE)*$H86)/1000000)*(VLOOKUP($E$8,'CO2 Conversion Factors'!$A$3:$G$23,5,FALSE)))*24)*$J86 -> 1812.93343 | O86: =((((VLOOKUP($B86,'Steam water pres table May-2009'!$B$4:$I$240,8,FALSE)*$H86)/1000000)*(VLOOKUP($E$8,'CO2 Conversion Factors'!$A$3:$G$23,6,FALSE)))*24)*$J86 -> 12690.53401 | P86: =((((VLOOKUP($B86,'Steam water pres table May-2009'!$B$4:$I$240,8,FALSE)*$H86)/1000000)*(VLOOKUP($E$8,'CO2 Conversion Factors'!$A$3:$G$23,7,FALSE)))*24)*$J86 -> 0
B87: 50 | D87: 64.696 | E87: 22.88 | F87: 0.375 | G87: 0.140625 | H87: =D87*E87*G87 -> 208.15938 | I87: =(H87/1000)*E$7 -> 0.52039845 | J87: 365 | K87: =I87*24*J87 -> 4558.690422 | L87: =((((VLOOKUP($B87,'Steam water pres table May-2009'!$B$4:$I$240,8,FALSE)*$H87)/1000000)*(VLOOKUP($E$8,'CO2 Conversion Factors'!$A$3:$G$23,3,FALSE)))*24)*$J87 -> 251752.5969 | M87: =((((VLOOKUP($B87,'Steam water pres table May-2009'!$B$4:$I$240,8,FALSE)*$H87)/1000000)*(VLOOKUP($E$8,'CO2 Conversion Factors'!$A$3:$G$23,4,FALSE)))*24)*$J87 -> 197.8240426 | N87: =((((VLOOKUP($B87,'Steam water pres table May-2009'!$B$4:$I$240,8,FALSE)*$H87)/1000000)*(VLOOKUP($E$8,'CO2 Conversion Factors'!$A$3:$G$23,5,FALSE)))*24)*$J87 -> 2150.261333 | O87: =((((VLOOKUP($B87,'Steam water pres table May-2009'!$B$4:$I$240,8,FALSE)*$H87)/1000000)*(VLOOKUP($E$8,'CO2 Conversion Factors'!$A$3:$G$23,6,FALSE)))*24)*$J87 -> 15051.82933 | P87: =((((VLOOKUP($B87,'Steam water pres table May-2009'!$B$4:$I$240,8,FALSE)*$H87)/1000000)*(VLOOKUP($E$8,'CO2 Conversion Factors'!$A$3:$G$23,7,FALSE)))*24)*$J87 -> 0
B88: 75 | D88: 89.696 | E88: 22.88 | F88: 0.375 | G88: 0.140625 | H88: 288.59688 | I88: 0.7214922 | J88: 365 | K88: 6320.271672 | L88: =((((VLOOKUP($B88,'Steam water pres table May-2009'!$B$4:$I$240,8,FALSE)*$H88)/1000000)*(VLOOKUP($E$8,'CO2 Conversion Factors'!$A$3:$G$23,3,FALSE)))*24)*$J88 -> 350778.8902 | M88: =((((VLOOKUP($B88,'Steam water pres table May-2009'!$B$4:$I$240,8,FALSE)*$H88)/1000000)*(VLOOKUP($E$8,'CO2 Conversion Factors'!$A$3:$G$23,4,FALSE)))*24)*$J88 -> 275.6376657 | N88: =((((VLOOKUP($B88,'Steam water pres table May-2009'!$B$4:$I$240,8,FALSE)*$H88)/1000000)*(VLOOKUP($E$8,'CO2 Conversion Factors'!$A$3:$G$23,5,FALSE)))*24)*$J88 -> 2996.061583 | O88: =((((VLOOKUP($B88,'Steam water pres table May-2009'!$B$4:$I$240,8,FALSE)*$H88)/1000000)*(VLOOKUP($E$8,'CO2 Conversion Factors'!$A$3:$G$23,6,FALSE)))*24)*$J88 -> 20972.43108 | P88: =((((VLOOKUP($B88,'Steam water pres table May-2009'!$B$4:$I$240,8,FALSE)*$H88)/1000000)*(VLOOKUP($E$8,'CO2 Conversion Factors'!$A$3:$G$23,7,FALSE)))*24)*$J88 -> 0
B89: 100 | D89: 114.696 | E89: 22.88 | F89: 0.375 | G89: 0.140625 | H89: 369.03438 | I89: 0.92258595 | J89: 365 | K89: 8081.852922 | L89: =((((VLOOKUP($B89,'Steam water pres table May-2009'!$B$4:$I$240,8,FALSE)*$H89)/1000000)*(VLOOKUP($E$8,'CO2 Conversion Factors'!$A$3:$G$23,3,FALSE)))*24)*$J89 -> 450175.2163 | M89: =((((VLOOKUP($B89,'Steam water pres table May-2009'!$B$4:$I$240,8,FALSE)*$H89)/1000000)*(VLOOKUP($E$8,'CO2 Conversion Factors'!$A$3:$G$23,4,FALSE)))*24)*$J89 -> 353.7420558 | N89: =((((VLOOKUP($B89,'Steam water pres table May-2009'!$B$4:$I$240,8,FALSE)*$H89)/1000000)*(VLOOKUP($E$8,'CO2 Conversion Factors'!$A$3:$G$23,5,FALSE)))*24)*$J89 -> 3845.022346 | O89: =((((VLOOKUP($B89,'Steam water pres table May-2009'!$B$4:$I$240,8,FALSE)*$H89)/1000000)*(VLOOKUP($E$8,'CO2 Conversion Factors'!$A$3:$G$23,6,FALSE)))*24)*$J89 -> 26915.15642 | P89: =((((VLOOKUP($B89,'Steam water pres table May-2009'!$B$4:$I$240,8,FALSE)*$H89)/1000000)*(VLOOKUP($E$8,'CO2 Conversion Factors'!$A$3:$G$23,7,FALSE)))*24)*$J89 -> 0
B90: 150 | D90: =B90+14.696 -> 164.696 | E90: 22.88 | F90: 0.375 | G90: 0.140625 | H90: =D90*E90*G90 -> 529.90938 | I90: =(H90/1000)*E$7 -> 1.32477345 | J90: 365 | K90: =I90*24*J90 -> 11605.01542 | L90: =((((VLOOKUP($B90,'Steam water pres table May-2009'!$B$4:$I$240,8,FALSE)*$H90)/1000000)*(VLOOKUP($E$8,'CO2 Conversion Factors'!$A$3:$G$23,3,FALSE)))*24)*$J90 -> 649509.3472 | M90: =((((VLOOKUP($B90,'Steam water pres table May-2009'!$B$4:$I$240,8,FALSE)*$H90)/1000000)*(VLOOKUP($E$8,'CO2 Conversion Factors'!$A$3:$G$23,4,FALSE)))*24)*$J90 -> 510.3763234 | N90: =((((VLOOKUP($B90,'Steam water pres table May-2009'!$B$4:$I$240,8,FALSE)*$H90)/1000000)*(VLOOKUP($E$8,'CO2 Conversion Factors'!$A$3:$G$23,5,FALSE)))*24)*$J90 -> 5547.568732 | O90: =((((VLOOKUP($B90,'Steam water pres table May-2009'!$B$4:$I$240,8,FALSE)*$H90)/1000000)*(VLOOKUP($E$8,'CO2 Conversion Factors'!$A$3:$G$23,6,FALSE)))*24)*$J90 -> 38832.98113 | P90: =((((VLOOKUP($B90,'Steam water pres table May-2009'!$B$4:$I$240,8,FALSE)*$H90)/1000000)*(VLOOKUP($E$8,'CO2 Conversion Factors'!$A$3:$G$23,7,FALSE)))*24)*$J90 -> 0
B91: 250 | D91: =B91+14.696 -> 264.696 | E91: 22.88 | F91: 0.375 | G91: 0.140625 | H91: =D91*E91*G91 -> 851.65938 | I91: =(H91/1000)*E$7 -> 2.12914845 | J91: 365 | K91: =I91*24*J91 -> 18651.34042 | L91: =((((VLOOKUP($B91,'Steam water pres table May-2009'!$B$4:$I$240,8,FALSE)*$H91)/1000000)*(VLOOKUP($E$8,'CO2 Conversion Factors'!$A$3:$G$23,3,FALSE)))*24)*$J91 -> 1049695.344 | M91: =((((VLOOKUP($B91,'Steam water pres table May-2009'!$B$4:$I$240,8,FALSE)*$H91)/1000000)*(VLOOKUP($E$8,'CO2 Conversion Factors'!$A$3:$G$23,4,FALSE)))*24)*$J91 -> 824.8374757 | N91: =((((VLOOKUP($B91,'Steam water pres table May-2009'!$B$4:$I$240,8,FALSE)*$H91)/1000000)*(VLOOKUP($E$8,'CO2 Conversion Factors'!$A$3:$G$23,5,FALSE)))*24)*$J91 -> 8965.624735 | O91: =((((VLOOKUP($B91,'Steam water pres table May-2009'!$B$4:$I$240,8,FALSE)*$H91)/1000000)*(VLOOKUP($E$8,'CO2 Conversion Factors'!$A$3:$G$23,6,FALSE)))*24)*$J91 -> 62759.37315 | P91: =((((VLOOKUP($B91,'Steam water pres table May-2009'!$B$4:$I$240,8,FALSE)*$H91)/1000000)*(VLOOKUP($E$8,'CO2 Conversion Factors'!$A$3:$G$23,7,FALSE)))*24)*$J91 -> 0
B92: 300 | D92: =B92+14.696 -> 314.696 | E92: 22.88 | F92: 0.375 | G92: 0.140625 | H92: =D92*E92*G92 -> 1012.53438 | I92: =(H92/1000)*E$7 -> 2.53133595 | J92: 365 | K92: =I92*24*J92 -> 22174.50292 | L92: =((((VLOOKUP($B92,'Steam water pres table May-2009'!$B$4:$I$240,8,FALSE)*$H92)/1000000)*(VLOOKUP($E$8,'CO2 Conversion Factors'!$A$3:$G$23,3,FALSE)))*24)*$J92 -> 1249484.324 | M92: =((((VLOOKUP($B92,'Steam water pres table May-2009'!$B$4:$I$240,8,FALSE)*$H92)/1000000)*(VLOOKUP($E$8,'CO2 Conversion Factors'!$A$3:$G$23,4,FALSE)))*24)*$J92 -> 981.8291583 | N92: =((((VLOOKUP($B92,'Steam water pres table May-2009'!$B$4:$I$240,8,FALSE)*$H92)/1000000)*(VLOOKUP($E$8,'CO2 Conversion Factors'!$A$3:$G$23,5,FALSE)))*24)*$J92 -> 10672.05607 | O92: =((((VLOOKUP($B92,'Steam water pres table May-2009'!$B$4:$I$240,8,FALSE)*$H92)/1000000)*(VLOOKUP($E$8,'CO2 Conversion Factors'!$A$3:$G$23,6,FALSE)))*24)*$J92 -> 74704.39248 | P92: =((((VLOOKUP($B92,'Steam water pres table May-2009'!$B$4:$I$240,8,FALSE)*$H92)/1000000)*(VLOOKUP($E$8,'CO2 Conversion Factors'!$A$3:$G$23,7,FALSE)))*24)*$J92 -> 0
B93: 400 | D93: 414.696 | E93: 22.88 | F93: 0.375 | G93: 0.140625 | H93: =D93*E93*G93 -> 1334.28438 | I93: =(H93/1000)*E$7 -> 3.33571095 | J93: 365 | K93: =I93*24*J93 -> 29220.82792 | L93: =((((VLOOKUP($B93,'Steam water pres table May-2009'!$B$4:$I$240,8,FALSE)*$H93)/1000000)*(VLOOKUP($E$8,'CO2 Conversion Factors'!$A$3:$G$23,3,FALSE)))*24)*$J93 -> 1647966.088 | M93: =((((VLOOKUP($B93,'Steam water pres table May-2009'!$B$4:$I$240,8,FALSE)*$H93)/1000000)*(VLOOKUP($E$8,'CO2 Conversion Factors'!$A$3:$G$23,4,FALSE)))*24)*$J93 -> 1294.951145 | N93: =((((VLOOKUP($B93,'Steam water pres table May-2009'!$B$4:$I$240,8,FALSE)*$H93)/1000000)*(VLOOKUP($E$8,'CO2 Conversion Factors'!$A$3:$G$23,5,FALSE)))*24)*$J93 -> 14075.55593 | O93: =((((VLOOKUP($B93,'Steam water pres table May-2009'!$B$4:$I$240,8,FALSE)*$H93)/1000000)*(VLOOKUP($E$8,'CO2 Conversion Factors'!$A$3:$G$23,6,FALSE)))*24)*$J93 -> 98528.89149 | P93: =((((VLOOKUP($B93,'Steam water pres table May-2009'!$B$4:$I$240,8,FALSE)*$H93)/1000000)*(VLOOKUP($E$8,'CO2 Conversion Factors'!$A$3:$G$23,7,FALSE)))*24)*$J93 -> 0
B94: 600 | D94: 614.696 | E94: 22.88 | F94: 0.375 | G94: 0.140625 | H94: 1977.78438 | I94: 4.94446095 | J94: 365 | K94: 43313.47792 | L94: =((((VLOOKUP($B94,'Steam water pres table May-2009'!$B$4:$I$240,8,FALSE)*$H94)/1000000)*(VLOOKUP($E$8,'CO2 Conversion Factors'!$A$3:$G$23,3,FALSE)))*24)*$J94 -> 2440010.398 | M94: =((((VLOOKUP($B94,'Steam water pres table May-2009'!$B$4:$I$240,8,FALSE)*$H94)/1000000)*(VLOOKUP($E$8,'CO2 Conversion Factors'!$A$3:$G$23,4,FALSE)))*24)*$J94 -> 1917.32966 | N94: =((((VLOOKUP($B94,'Steam water pres table May-2009'!$B$4:$I$240,8,FALSE)*$H94)/1000000)*(VLOOKUP($E$8,'CO2 Conversion Factors'!$A$3:$G$23,5,FALSE)))*24)*$J94 -> 20840.53978 | O94: =((((VLOOKUP($B94,'Steam water pres table May-2009'!$B$4:$I$240,8,FALSE)*$H94)/1000000)*(VLOOKUP($E$8,'CO2 Conversion Factors'!$A$3:$G$23,6,FALSE)))*24)*$J94 -> 145883.7785 | P94: =((((VLOOKUP($B94,'Steam water pres table May-2009'!$B$4:$I$240,8,FALSE)*$H94)/1000000)*(VLOOKUP($E$8,'CO2 Conversion Factors'!$A$3:$G$23,7,FALSE)))*24)*$J94 -> 0
B96: 1/2" Leak
B97: Pressure | D97: Abs Pressure | E97: Constant | F97: Diameter | G97: D^2 | H97: Steam Loss (pph) | I97: Cost / Hour | J97: Days / Year | K97: Cost / Year | L97: CO2 Emissions / Year | M97: NOX | N97: SO2 | O97: Particulates | P97: Mercury
B98: 5 | D98: =B98+14.696 -> 19.696 | E98: 22.88 | F98: 0.5 | G98: =F98^2 -> 0.25 | H98: =D98*E98*G98 -> 112.66112 | I98: =(H98/1000)*E$7 -> 0.2816528 | J98: 365 | K98: =I98*24*J98 -> 2467.278528 | L98: =((((VLOOKUP($B98,'Steam water pres table May-2009'!$B$4:$I$240,8,FALSE)*$H98)/1000000)*(VLOOKUP($E$8,'CO2 Conversion Factors'!$A$3:$G$23,3,FALSE)))*24)*$J98 -> 133585.722 | M98: =((((VLOOKUP($B98,'Steam water pres table May-2009'!$B$4:$I$240,8,FALSE)*$H98)/1000000)*(VLOOKUP($E$8,'CO2 Conversion Factors'!$A$3:$G$23,4,FALSE)))*24)*$J98 -> 104.9699899 | N98: =((((VLOOKUP($B98,'Steam water pres table May-2009'!$B$4:$I$240,8,FALSE)*$H98)/1000000)*(VLOOKUP($E$8,'CO2 Conversion Factors'!$A$3:$G$23,5,FALSE)))*24)*$J98 -> 1140.978152 | O98: =((((VLOOKUP($B98,'Steam water pres table May-2009'!$B$4:$I$240,8,FALSE)*$H98)/1000000)*(VLOOKUP($E$8,'CO2 Conversion Factors'!$A$3:$G$23,6,FALSE)))*24)*$J98 -> 7986.847061 | P98: =((((VLOOKUP($B98,'Steam water pres table May-2009'!$B$4:$I$240,8,FALSE)*$H98)/1000000)*(VLOOKUP($E$8,'CO2 Conversion Factors'!$A$3:$G$23,7,FALSE)))*24)*$J98 -> 0
B99: 15 | D99: 29.696 | E99: 22.88 | F99: 0.5 | G99: 0.25 | H99: 169.86112 | I99: 0.4246528 | J99: 365 | K99: 3719.958528 | L99: =((((VLOOKUP($B99,'Steam water pres table May-2009'!$B$4:$I$240,8,FALSE)*$H99)/1000000)*(VLOOKUP($E$8,'CO2 Conversion Factors'!$A$3:$G$23,3,FALSE)))*24)*$J99 -> 202813.662 | M99: =((((VLOOKUP($B99,'Steam water pres table May-2009'!$B$4:$I$240,8,FALSE)*$H99)/1000000)*(VLOOKUP($E$8,'CO2 Conversion Factors'!$A$3:$G$23,4,FALSE)))*24)*$J99 -> 159.3684396 | N99: =((((VLOOKUP($B99,'Steam water pres table May-2009'!$B$4:$I$240,8,FALSE)*$H99)/1000000)*(VLOOKUP($E$8,'CO2 Conversion Factors'!$A$3:$G$23,5,FALSE)))*24)*$J99 -> 1732.265648 | O99: =((((VLOOKUP($B99,'Steam water pres table May-2009'!$B$4:$I$240,8,FALSE)*$H99)/1000000)*(VLOOKUP($E$8,'CO2 Conversion Factors'!$A$3:$G$23,6,FALSE)))*24)*$J99 -> 12125.85953 | P99: =((((VLOOKUP($B99,'Steam water pres table May-2009'!$B$4:$I$240,8,FALSE)*$H99)/1000000)*(VLOOKUP($E$8,'CO2 Conversion Factors'!$A$3:$G$23,7,FALSE)))*24)*$J99 -> 0
B100: 25 | D100: 39.696 | E100: 22.88 | F100: 0.5 | G100: 0.25 | H100: =D100*E100*G100 -> 227.06112 | I100: =(H100/1000)*E$7 -> 0.5676528 | J100: 365 | K100: =I100*24*J100 -> 4972.638528 | L100: =((((VLOOKUP($B100,'Steam water pres table May-2009'!$B$4:$I$240,8,FALSE)*$H100)/1000000)*(VLOOKUP($E$8,'CO2 Conversion Factors'!$A$3:$G$23,3,FALSE)))*24)*$J100 -> 272437.6966 | M100: =((((VLOOKUP($B100,'Steam water pres table May-2009'!$B$4:$I$240,8,FALSE)*$H100)/1000000)*(VLOOKUP($E$8,'CO2 Conversion Factors'!$A$3:$G$23,4,FALSE)))*24)*$J100 -> 214.0781354 | N100: =((((VLOOKUP($B100,'Steam water pres table May-2009'!$B$4:$I$240,8,FALSE)*$H100)/1000000)*(VLOOKUP($E$8,'CO2 Conversion Factors'!$A$3:$G$23,5,FALSE)))*24)*$J100 -> 2326.936254 | O100: =((((VLOOKUP($B100,'Steam water pres table May-2009'!$B$4:$I$240,8,FALSE)*$H100)/1000000)*(VLOOKUP($E$8,'CO2 Conversion Factors'!$A$3:$G$23,6,FALSE)))*24)*$J100 -> 16288.55378 | P100: =((((VLOOKUP($B100,'Steam water pres table May-2009'!$B$4:$I$240,8,FALSE)*$H100)/1000000)*(VLOOKUP($E$8,'CO2 Conversion Factors'!$A$3:$G$23,7,FALSE)))*24)*$J100 -> 0
B101: 30 | D101: 44.696 | E101: 22.88 | F101: 0.5 | G101: 0.25 | H101: 255.66112 | I101: 0.6391528 | J101: 365 | K101: 5598.978528 | L101: =((((VLOOKUP($B101,'Steam water pres table May-2009'!$B$4:$I$240,8,FALSE)*$H101)/1000000)*(VLOOKUP($E$8,'CO2 Conversion Factors'!$A$3:$G$23,3,FALSE)))*24)*$J101 -> 307364.159 | M101: =((((VLOOKUP($B101,'Steam water pres table May-2009'!$B$4:$I$240,8,FALSE)*$H101)/1000000)*(VLOOKUP($E$8,'CO2 Conversion Factors'!$A$3:$G$23,4,FALSE)))*24)*$J101 -> 241.5229128 | N101: =((((VLOOKUP($B101,'Steam water pres table May-2009'!$B$4:$I$240,8,FALSE)*$H101)/1000000)*(VLOOKUP($E$8,'CO2 Conversion Factors'!$A$3:$G$23,5,FALSE)))*24)*$J101 -> 2625.249052 | O101: =((((VLOOKUP($B101,'Steam water pres table May-2009'!$B$4:$I$240,8,FALSE)*$H101)/1000000)*(VLOOKUP($E$8,'CO2 Conversion Factors'!$A$3:$G$23,6,FALSE)))*24)*$J101 -> 18376.74337 | P101: =((((VLOOKUP($B101,'Steam water pres table May-2009'!$B$4:$I$240,8,FALSE)*$H101)/1000000)*(VLOOKUP($E$8,'CO2 Conversion Factors'!$A$3:$G$23,7,FALSE)))*24)*$J101 -> 0
B102: 40 | D102: 54.696 | E102: 22.88 | F102: 0.5 | G102: 0.25 | H102: 312.86112 | I102: 0.7821528 | J102: 365 | K102: 6851.658528 | L102: =((((VLOOKUP($B102,'Steam water pres table May-2009'!$B$4:$I$240,8,FALSE)*$H102)/1000000)*(VLOOKUP($E$8,'CO2 Conversion Factors'!$A$3:$G$23,3,FALSE)))*24)*$J102 -> 377347.9929 | M102: =((((VLOOKUP($B102,'Steam water pres table May-2009'!$B$4:$I$240,8,FALSE)*$H102)/1000000)*(VLOOKUP($E$8,'CO2 Conversion Factors'!$A$3:$G$23,4,FALSE)))*24)*$J102 -> 296.5153344 | N102: =((((VLOOKUP($B102,'Steam water pres table May-2009'!$B$4:$I$240,8,FALSE)*$H102)/1000000)*(VLOOKUP($E$8,'CO2 Conversion Factors'!$A$3:$G$23,5,FALSE)))*24)*$J102 -> 3222.992765 | O102: =((((VLOOKUP($B102,'Steam water pres table May-2009'!$B$4:$I$240,8,FALSE)*$H102)/1000000)*(VLOOKUP($E$8,'CO2 Conversion Factors'!$A$3:$G$23,6,FALSE)))*24)*$J102 -> 22560.94935 | P102: =((((VLOOKUP($B102,'Steam water pres table May-2009'!$B$4:$I$240,8,FALSE)*$H102)/1000000)*(VLOOKUP($E$8,'CO2 Conversion Factors'!$A$3:$G$23,7,FALSE)))*24)*$J102 -> 0
B103: 50 | D103: 64.696 | E103: 22.88 | F103: 0.5 | G103: 0.25 | H103: =D103*E103*G103 -> 370.06112 | I103: =(H103/1000)*E$7 -> 0.9251528 | J103: 365 | K103: =I103*24*J103 -> 8104.338528 | L103: =((((VLOOKUP($B103,'Steam water pres table May-2009'!$B$4:$I$240,8,FALSE)*$H103)/1000000)*(VLOOKUP($E$8,'CO2 Conversion Factors'!$A$3:$G$23,3,FALSE)))*24)*$J103 -> 447560.1722 | M103: =((((VLOOKUP($B103,'Steam water pres table May-2009'!$B$4:$I$240,8,FALSE)*$H103)/1000000)*(VLOOKUP($E$8,'CO2 Conversion Factors'!$A$3:$G$23,4,FALSE)))*24)*$J103 -> 351.6871869 | N103: =((((VLOOKUP($B103,'Steam water pres table May-2009'!$B$4:$I$240,8,FALSE)*$H103)/1000000)*(VLOOKUP($E$8,'CO2 Conversion Factors'!$A$3:$G$23,5,FALSE)))*24)*$J103 -> 3822.686814 | O103: =((((VLOOKUP($B103,'Steam water pres table May-2009'!$B$4:$I$240,8,FALSE)*$H103)/1000000)*(VLOOKUP($E$8,'CO2 Conversion Factors'!$A$3:$G$23,6,FALSE)))*24)*$J103 -> 26758.8077 | P103: =((((VLOOKUP($B103,'Steam water pres table May-2009'!$B$4:$I$240,8,FALSE)*$H103)/1000000)*(VLOOKUP($E$8,'CO2 Conversion Factors'!$A$3:$G$23,7,FALSE)))*24)*$J103 -> 0
B104: 75 | D104: 89.696 | E104: 22.88 | F104: 0.5 | G104: 0.25 | H104: 513.06112 | I104: 1.2826528 | J104: 365 | K104: 11236.03853 | L104: =((((VLOOKUP($B104,'Steam water pres table May-2009'!$B$4:$I$240,8,FALSE)*$H104)/1000000)*(VLOOKUP($E$8,'CO2 Conversion Factors'!$A$3:$G$23,3,FALSE)))*24)*$J104 -> 623606.9159 | M104: =((((VLOOKUP($B104,'Steam water pres table May-2009'!$B$4:$I$240,8,FALSE)*$H104)/1000000)*(VLOOKUP($E$8,'CO2 Conversion Factors'!$A$3:$G$23,4,FALSE)))*24)*$J104 -> 490.0225168 | N104: =((((VLOOKUP($B104,'Steam water pres table May-2009'!$B$4:$I$240,8,FALSE)*$H104)/1000000)*(VLOOKUP($E$8,'CO2 Conversion Factors'!$A$3:$G$23,5,FALSE)))*24)*$J104 -> 5326.331704 | O104: =((((VLOOKUP($B104,'Steam water pres table May-2009'!$B$4:$I$240,8,FALSE)*$H104)/1000000)*(VLOOKUP($E$8,'CO2 Conversion Factors'!$A$3:$G$23,6,FALSE)))*24)*$J104 -> 37284.32193 | P104: =((((VLOOKUP($B104,'Steam water pres table May-2009'!$B$4:$I$240,8,FALSE)*$H104)/1000000)*(VLOOKUP($E$8,'CO2 Conversion Factors'!$A$3:$G$23,7,FALSE)))*24)*$J104 -> 0
B105: 100 | D105: 114.696 | E105: 22.88 | F105: 0.5 | G105: 0.25 | H105: 656.06112 | I105: 1.6401528 | J105: 365 | K105: 14367.73853 | L105: =((((VLOOKUP($B105,'Steam water pres table May-2009'!$B$4:$I$240,8,FALSE)*$H105)/1000000)*(VLOOKUP($E$8,'CO2 Conversion Factors'!$A$3:$G$23,3,FALSE)))*24)*$J105 -> 800311.4956 | M105: =((((VLOOKUP($B105,'Steam water pres table May-2009'!$B$4:$I$240,8,FALSE)*$H105)/1000000)*(VLOOKUP($E$8,'CO2 Conversion Factors'!$A$3:$G$23,4,FALSE)))*24)*$J105 -> 628.874766 | N105: =((((VLOOKUP($B105,'Steam water pres table May-2009'!$B$4:$I$240,8,FALSE)*$H105)/1000000)*(VLOOKUP($E$8,'CO2 Conversion Factors'!$A$3:$G$23,5,FALSE)))*24)*$J105 -> 6835.595282 | O105: =((((VLOOKUP($B105,'Steam water pres table May-2009'!$B$4:$I$240,8,FALSE)*$H105)/1000000)*(VLOOKUP($E$8,'CO2 Conversion Factors'!$A$3:$G$23,6,FALSE)))*24)*$J105 -> 47849.16697 | P105: =((((VLOOKUP($B105,'Steam water pres table May-2009'!$B$4:$I$240,8,FALSE)*$H105)/1000000)*(VLOOKUP($E$8,'CO2 Conversion Factors'!$A$3:$G$23,7,FALSE)))*24)*$J105 -> 0
B106: 150 | D106: =B106+14.696 -> 164.696 | E106: 22.88 | F106: 0.5 | G106: 0.25 | H106: =D106*E106*G106 -> 942.06112 | I106: =(H106/1000)*E$7 -> 2.3551528 | J106: 365 | K106: =I106*24*J106 -> 20631.13853 | L106: =((((VLOOKUP($B106,'Steam water pres table May-2009'!$B$4:$I$240,8,FALSE)*$H106)/1000000)*(VLOOKUP($E$8,'CO2 Conversion Factors'!$A$3:$G$23,3,FALSE)))*24)*$J106 -> 1154683.284 | M106: =((((VLOOKUP($B106,'Steam water pres table May-2009'!$B$4:$I$240,8,FALSE)*$H106)/1000000)*(VLOOKUP($E$8,'CO2 Conversion Factors'!$A$3:$G$23,4,FALSE)))*24)*$J106 -> 907.335686 | N106: =((((VLOOKUP($B106,'Steam water pres table May-2009'!$B$4:$I$240,8,FALSE)*$H106)/1000000)*(VLOOKUP($E$8,'CO2 Conversion Factors'!$A$3:$G$23,5,FALSE)))*24)*$J106 -> 9862.344413 | O106: =((((VLOOKUP($B106,'Steam water pres table May-2009'!$B$4:$I$240,8,FALSE)*$H106)/1000000)*(VLOOKUP($E$8,'CO2 Conversion Factors'!$A$3:$G$23,6,FALSE)))*24)*$J106 -> 69036.41089 | P106: =((((VLOOKUP($B106,'Steam water pres table May-2009'!$B$4:$I$240,8,FALSE)*$H106)/1000000)*(VLOOKUP($E$8,'CO2 Conversion Factors'!$A$3:$G$23,7,FALSE)))*24)*$J106 -> 0
B107: 250 | D107: =B107+14.696 -> 264.696 | E107: 22.88 | F107: 0.5 | G107: 0.25 | H107: =D107*E107*G107 -> 1514.06112 | I107: =(H107/1000)*E$7 -> 3.7851528 | J107: 365 | K107: =I107*24*J107 -> 33157.93853 | L107: =((((VLOOKUP($B107,'Steam water pres table May-2009'!$B$4:$I$240,8,FALSE)*$H107)/1000000)*(VLOOKUP($E$8,'CO2 Conversion Factors'!$A$3:$G$23,3,FALSE)))*24)*$J107 -> 1866125.056 | M107: =((((VLOOKUP($B107,'Steam water pres table May-2009'!$B$4:$I$240,8,FALSE)*$H107)/1000000)*(VLOOKUP($E$8,'CO2 Conversion Factors'!$A$3:$G$23,4,FALSE)))*24)*$J107 -> 1466.377735 | N107: =((((VLOOKUP($B107,'Steam water pres table May-2009'!$B$4:$I$240,8,FALSE)*$H107)/1000000)*(VLOOKUP($E$8,'CO2 Conversion Factors'!$A$3:$G$23,5,FALSE)))*24)*$J107 -> 15938.88842 | O107: =((((VLOOKUP($B107,'Steam water pres table May-2009'!$B$4:$I$240,8,FALSE)*$H107)/1000000)*(VLOOKUP($E$8,'CO2 Conversion Factors'!$A$3:$G$23,6,FALSE)))*24)*$J107 -> 111572.2189 | P107: =((((VLOOKUP($B107,'Steam water pres table May-2009'!$B$4:$I$240,8,FALSE)*$H107)/1000000)*(VLOOKUP($E$8,'CO2 Conversion Factors'!$A$3:$G$23,7,FALSE)))*24)*$J107 -> 0
B108: 300 | D108: =B108+14.696 -> 314.696 | E108: 22.88 | F108: 0.5 | G108: 0.25 | H108: =D108*E108*G108 -> 1800.06112 | I108: =(H108/1000)*E$7 -> 4.5001528 | J108: 365 | K108: =I108*24*J108 -> 39421.33853 | L108: =((((VLOOKUP($B108,'Steam water pres table May-2009'!$B$4:$I$240,8,FALSE)*$H108)/1000000)*(VLOOKUP($E$8,'CO2 Conversion Factors'!$A$3:$G$23,3,FALSE)))*24)*$J108 -> 2221305.466 | M108: =((((VLOOKUP($B108,'Steam water pres table May-2009'!$B$4:$I$240,8,FALSE)*$H108)/1000000)*(VLOOKUP($E$8,'CO2 Conversion Factors'!$A$3:$G$23,4,FALSE)))*24)*$J108 -> 1745.474059 | N108: =((((VLOOKUP($B108,'Steam water pres table May-2009'!$B$4:$I$240,8,FALSE)*$H108)/1000000)*(VLOOKUP($E$8,'CO2 Conversion Factors'!$A$3:$G$23,5,FALSE)))*24)*$J108 -> 18972.54412 | O108: =((((VLOOKUP($B108,'Steam water pres table May-2009'!$B$4:$I$240,8,FALSE)*$H108)/1000000)*(VLOOKUP($E$8,'CO2 Conversion Factors'!$A$3:$G$23,6,FALSE)))*24)*$J108 -> 132807.8088 | P108: =((((VLOOKUP($B108,'Steam water pres table May-2009'!$B$4:$I$240,8,FALSE)*$H108)/1000000)*(VLOOKUP($E$8,'CO2 Conversion Factors'!$A$3:$G$23,7,FALSE)))*24)*$J108 -> 0
B109: 400 | D109: 414.696 | E109: 22.88 | F109: 0.5 | G109: 0.25 | H109: =D109*E109*G109 -> 2372.06112 | I109: =(H109/1000)*E$7 -> 5.9301528 | J109: 365 | K109: =I109*24*J109 -> 51948.13853 | L109: =((((VLOOKUP($B109,'Steam water pres table May-2009'!$B$4:$I$240,8,FALSE)*$H109)/1000000)*(VLOOKUP($E$8,'CO2 Conversion Factors'!$A$3:$G$23,3,FALSE)))*24)*$J109 -> 2929717.49 | M109: =((((VLOOKUP($B109,'Steam water pres table May-2009'!$B$4:$I$240,8,FALSE)*$H109)/1000000)*(VLOOKUP($E$8,'CO2 Conversion Factors'!$A$3:$G$23,4,FALSE)))*24)*$J109 -> 2302.135369 | N109: =((((VLOOKUP($B109,'Steam water pres table May-2009'!$B$4:$I$240,8,FALSE)*$H109)/1000000)*(VLOOKUP($E$8,'CO2 Conversion Factors'!$A$3:$G$23,5,FALSE)))*24)*$J109 -> 25023.21054 | O109: =((((VLOOKUP($B109,'Steam water pres table May-2009'!$B$4:$I$240,8,FALSE)*$H109)/1000000)*(VLOOKUP($E$8,'CO2 Conversion Factors'!$A$3:$G$23,6,FALSE)))*24)*$J109 -> 175162.4738 | P109: =((((VLOOKUP($B109,'Steam water pres table May-2009'!$B$4:$I$240,8,FALSE)*$H109)/1000000)*(VLOOKUP($E$8,'CO2 Conversion Factors'!$A$3:$G$23,7,FALSE)))*24)*$J109 -> 0
B110: 600 | D110: 614.696 | E110: 22.88 | F110: 0.5 | G110: 0.25 | H110: 3516.06112 | I110: 8.7901528 | J110: 365 | K110: 77001.73853 | L110: =((((VLOOKUP($B110,'Steam water pres table May-2009'!$B$4:$I$240,8,FALSE)*$H110)/1000000)*(VLOOKUP($E$8,'CO2 Conversion Factors'!$A$3:$G$23,3,FALSE)))*24)*$J110 -> 4337796.263 | M110: =((((VLOOKUP($B110,'Steam water pres table May-2009'!$B$4:$I$240,8,FALSE)*$H110)/1000000)*(VLOOKUP($E$8,'CO2 Conversion Factors'!$A$3:$G$23,4,FALSE)))*24)*$J110 -> 3408.586062 | N110: =((((VLOOKUP($B110,'Steam water pres table May-2009'!$B$4:$I$240,8,FALSE)*$H110)/1000000)*(VLOOKUP($E$8,'CO2 Conversion Factors'!$A$3:$G$23,5,FALSE)))*24)*$J110 -> 37049.8485 | O110: =((((VLOOKUP($B110,'Steam water pres table May-2009'!$B$4:$I$240,8,FALSE)*$H110)/1000000)*(VLOOKUP($E$8,'CO2 Conversion Factors'!$A$3:$G$23,6,FALSE)))*24)*$J110 -> 259348.9395 | P110: =((((VLOOKUP($B110,'Steam water pres table May-2009'!$B$4:$I$240,8,FALSE)*$H110)/1000000)*(VLOOKUP($E$8,'CO2 Conversion Factors'!$A$3:$G$23,7,FALSE)))*24)*$J110 -> 0
B111: Copy Rights: Not to be copied or distributed without specific permission from Inveno Engineering LLC; kelly.paffel@invenoeng.com

Sheet Report Sheet
C4: Steam Leakage Summary Sheet
F5: Notes
C6: Steam Loss = 22.88 x Pa X D^2 - Equation used for the steam leaks
C7: Cost of steam | D7: 9 | E7: Per Thousand Lbs
C8: Estimated number of Leaks | D8: 82
C9: Average size of the leak | D9: 0.1
C10: Psia | D10: 189 | E10: 13.01 bara
C11: Flow in lbs. per hour | D11: =(22.88*D10*D9^2*D8) -> 3545.9424 | J11: =(D11*8760) -> 31062455.42
C12: Conversion lb to Tonne | D12: 2204
C13: Steam loss flow in Tonne | D13: =(D11/D12) -> 1.608866788 | E13: Tonne
C14: Cost per hour | D14: =(D13*D7) -> 14.47980109 | J14: 31062
C15: Cost per year | D15: =(D14*8760) -> 126843.0575 | J15: 4.5
C16: Emissions Natural Gas | D16: 0.092 | E16: Per mmbtu
C17: C02 per year (lbs) | D17: =(J11*D16) -> 2857745.899 | E17: lbs per year
C18: CO2 per year (Tonne) | D18: =(D17/2204) -> 1296.617922 | E18: Ton per year | J18: =(J14*J15) -> 139779
C19: Copy Rights: Not to be copied or distributed without specific permission from Inveno Engineering LLC; kelly.paffel@invenoeng.com

Sheet CO2 Conversion Factors
A1: Proposed CO2 Conversion Factors for Primary Energy Savings under SEN Program
A2: Fuel Type | B2: CO2 Emissions Factors Used by Save Energy Now Program (CO2/MMBtu Primary) | C2: Conversion Factor | D2: NOX | E2: SO2 | F2: Particlulates | G2: Mercury
A3: Black Liquor | B3: 221.605 lbs CO2/MMBtu | C3: 221.605
A4: Blast Furnace Gas | B4: 604.589 lbs CO2/MMBtu | C4: 604.589
A5: Butane | B5: 141.801 lbs CO2/MMBtu | C5: 141.801
A6: Butene | B6: 141.801 lbs CO2/MMBtu | C6: 141.801
A7: Coal | B7: 215.2 lbs CO2/MMBtu | C7: 215.2 | D7: 457 | E7: 2591 | F7: 2744 | G7: 0.016
A8: Coke | B8: 225.130 lbs CO2/MMBtu | C8: 225.13
A9: Coke Oven Gas | B9: 103.245 lbs CO2/MMBtu | C9: 103.245
A10: Crude Petroleum | B10: 170.447 lbs CO2/MMBtu | C10: 170.447
A11: Distillate Fuel (Light Fuel Oil) | B11: 161.386 lbs CO2/MMBtu | C11: 161.386
A12: Electricity (purchased) | B12: 127.56 lbs CO2/MMBtu | C12: 127.56
A13: Ethane | B13: 130.029 lbs CO2/MMBtu | C13: 130.029
A14: Gasoline | B14: 156.425 lbs CO2/MMBtu | C14: 156.425
A15: Isobutane | B15: 142.044 lbs CO2/MMBtu | C15: 142.044
A16: Kerosene | B16: 159.535 lbs CO2/MMBtu | C16: 159.535
A17: Liquefied Petroleum Gas (LPG) | B17: 139.039 lbs CO2/MMBtu | C17: 139.039
A18: Methane / Landfill Gas | B18: 115.258 lbs CO2/MMBtu | C18: 115.258
A19: Municipal refuse (Dry) | B19: 145.877 lbs CO2/MMBtu | C19: 145.877
A20: Natural Gas | B20: 117.080 lbs CO2/MMBtu | C20: 117.08 | D20: 0.092 | E20: 1 | F20: 7 | G20: 0
A21: Peat | B21: 246.486 lbs CO2/MMBtu | C21: 246.486
A22: Propane | B22: 139.178 lbs CO2/MMBtu | C22: 139.178
A23: Residual Fuel Oil (Heavy Fuel Oil) | B23: 173.906 lbs CO2/MMBtu | C23: 173.906 | D23: 448 | E23: 1122 | F23: 84 | G23: 0.007
A24: Copy Rights: Not to be copied or distributed without specific permission from Inveno Engineering LLC; kelly.paffel@invenoeng.com
C34: =SUM(B18,B20,B21,B22,B23,B35,B43,B44,B45,B46,B47,B48,B49) -> 0

Sheet Steam water pres table May-2009
B1: Step 1 | I1: Step 2
B2: Pressure | D2: Temperature | E2: Specific Volume | G2: Heat -BTU/lb | H2: Enthalpy - BTU/lb
B3: Gage psig | C3: Absolute psia | D3: Saturation Deg. F. | E3: Water vf ft3/lb | F3: Steam vg ft3/lb | G3: Liquid hf | H3: Lat. Heat hfg | I3: Total STM Heat hg
B4: 0 | C4: 14.7 | D4: 212 | E4: 0.016713 | F4: 26.789 | G4: 180.33 | H4: 970 | I4: =SUM(G4:H4) -> 1150.33
B5: 1 | C5: 15.7 | D5: 215.34 | E5: 0.016738 | F5: 25.191 | G5: 183.7 | H5: 967.9 | I5: =SUM(G5:H5) -> 1151.6
B6: 2 | C6: 16.7 | D6: 218.51 | E6: 0.016761 | F6: 23.779 | G6: 186.89 | H6: 966 | I6: =SUM(G6:H6) -> 1152.89
B7: 3 | C7: 17.7 | D7: 221.53 | E7: 0.016784 | F7: 22.522 | G7: 189.93 | H7: 964.1 | I7: =SUM(G7:H7) -> 1154.03
B8: 4 | C8: 18.7 | D8: 224.4 | E8: 0.016806 | F8: 21.394 | G8: 192.83 | H8: 962.3 | I8: 1155.13
B9: 5 | C9: 19.7 | D9: 227.15 | E9: 0.016827 | F9: 20.378 | G9: 195.61 | H9: 960.5 | I9: 1156.11
B10: 6 | C10: 20.7 | D10: 229.79 | E10: 0.016848 | F10: 19.456 | G10: 198.28 | H10: 958.8 | I10: 1157.08
B11: 7 | C11: 21.7 | D11: 232.33 | E11: 0.016867 | F11: 18.617 | G11: 200.84 | H11: 957.2 | I11: 1158.04
B12: 8 | C12: 22.7 | D12: 234.77 | E12: 0.016886 | F12: 17.849 | G12: 203.31 | H12: 955.6 | I12: 1158.91
B13: 9 | C13: 23.7 | D13: 237.13 | E13: 0.016905 | F13: 17.144 | G13: 205.69 | H13: 954.1 | I13: 1159.79
B14: 10 | C14: 24.7 | D14: 239.4 | E14: 0.016923 | F14: 16.494 | G14: 207.99 | H14: 952.6 | I14: 1160.59
B15: 11 | C15: 25.7 | D15: 241.6 | E15: 0.016941 | F15: 15.892 | G15: 210.21 | H15: 951.2 | I15: 1161.41
B16: 12 | C16: 26.7 | D16: 243.74 | E16: 0.016958 | F16: 15.335 | G16: 212.37 | H16: 949.8 | I16: 1162.1
B17: 13 | C17: 27.7 | D17: 245.8 | E17: 0.016974 | F17: 14.816 | G17: 214.46 | H17: 948.4 | I17: 1162.8
B18: 14 | C18: 28.7 | D18: 247.81 | E18: 0.016991 | F18: 14.332 | G18: 216.5 | H18: 947 | I18: 1163.5
B19: 15 | C19: 29.7 | D19: 249.76 | E19: 0.017006 | F19: 13.88 | G19: 218.47 | H19: 945.7 | I19: 1164.17
B20: 16 | C20: 30.7 | D20: 251.66 | E20: 0.017022 | F20: 13.456 | G20: 220.4 | H20: 944.5 | I20: 1164.9
B21: 17 | C21: 31.7 | D21: 253.51 | E21: 0.017037 | F21: 13.058 | G21: 222.27 | H21: 943.2 | I21: 1165.47
B22: 18 | C22: 32.7 | D22: 255.31 | E22: 0.017052 | F22: 12.684 | G22: 224.1 | H22: 942 | I22: 1166.1
B23: 19 | C23: 33.7 | D23: 257.06 | E23: 0.017067 | F23: 12.331 | G23: 225.88 | H23: 940.8 | I23: 1166.68
B24: 20 | C24: 34.7 | D24: 258.78 | E24: 0.017081 | F24: 11.998 | G24: 227.62 | H24: 939.6 | I24: 1167.3
B25: 21 | C25: 35.7 | D25: 260.45 | E25: 0.017095 | F25: 11.682 | G25: 229.32 | H25: 938.5 | I25: 1167.82
B26: 22 | C26: 36.7 | D26: 262.09 | E26: 0.017109 | F26: 11.384 | G26: 230.99 | H26: 937.4 | I26: 1168.39
B27: 23 | C27: 37.7 | D27: 263.69 | E27: 0.017123 | F27: 11.1 | G27: 232.61 | H27: 936.3 | I27: 1168.91
B28: 24 | C28: 38.7 | D28: 265.25 | E28: 0.017136 | F28: 10.831 | G28: 234.21 | H28: 935.2 | I28: 1169.41
B29: 25 | C29: 39.7 | D29: 266.79 | E29: 0.017149 | F29: 10.575 | G29: 235.77 | H29: 934.1 | I29: 1169.87
B30: 26 | C30: 40.7 | D30: 268.29 | E30: 0.017162 | F30: 10.331 | G30: 237.3 | H30: 933.1 | I30: 1170.4
B31: 27 | C31: 41.7 | D31: 269.76 | E31: 0.017175 | F31: 10.098 | G31: 238.8 | H31: 932 | I31: 1170.8
B32: 28 | C32: 42.7 | D32: 271.21 | E32: 0.017188 | F32: 9.876 | G32: 240.27 | H32: 931 | I32: 1171.27
B33: 29 | C33: 43.7 | D33: 272.63 | E33: 0.0172 | F33: 9.664 | G33: 241.71 | H33: 930 | I33: 1171.71
B34: 30 | C34: 44.7 | D34: 274.02 | E34: 0.017212 | F34: 9.461 | G34: 243.13 | H34: 929 | I34: 1172.2
B35: 31 | C35: 45.7 | D35: 275.38 | E35: 0.017224 | F35: 9.266 | G35: 244.53 | H35: 928.1 | I35: 1172.63
B36: 32 | C36: 46.7 | D36: 276.73 | E36: 0.017236 | F36: 9.08 | G36: 245.89 | H36: 927.1 | I36: 1172.99
B37: 33 | C37: 47.7 | D37: 278.05 | E37: 0.017248 | F37: 8.901 | G37: 247.24 | H37: 926.2 | I37: 1173.44
B38: 34 | C38: 48.7 | D38: 279.34 | E38: 0.01726 | F38: 8.729 | G38: 248.57 | H38: 925.3 | I38: 1173.8
B39: 35 | C39: 49.7 | D39: 280.62 | E39: 0.017271 | F39: 8.564 | G39: 249.87 | H39: 924.3 | I39: 1174.17
B40: 36 | C40: 50.7 | D40: 281.87 | E40: 0.017283 | F40: 8.405 | G40: 251.15 | H40: 923.4 | I40: 1174.55
B41: 37 | C41: 51.7 | D41: 283.11 | E41: 0.017294 | F41: 8.252 | G41: 252.41 | H41: 922.6 | I41: 1175.01
B42: 38 | C42: 52.7 | D42: 284.33 | E42: 0.017305 | F42: 8.104 | G42: 253.66 | H42: 921.7 | I42: 1175.3
B43: 39 | C43: 53.7 | D43: 285.52 | E43: 0.017316 | F43: 7.962 | G43: 254.88 | H43: 920.8 | I43: 1175.68
B44: 40 | C44: 54.7 | D44: 286.71 | E44: 0.017327 | F44: 7.825 | G44: 256.09 | H44: 919.9 | I44: 1175.99
B45: 41 | C45: 55.7 | D45: 287.87 | E45: 0.017338 | F45: 7.693 | G45: 257.28 | H45: 919.1 | I45: 1176.38
B46: 42 | C46: 56.7 | D46: 289.02 | E46: 0.017349 | F46: 7.565 | G46: 258.46 | H46: 918.3 | I46: 1176.7
B47: Pressure | D47: Temperature | E47: Specific Volume | G47: Heat -BTU/lb | H47: Enthalpy - BTU/lb
B48: Gage psig | C48: Absolute psia | D48: Saturation Deg. F. | E48: Water vf ft3/lb | F48: Steam vg ft3/lb | G48: Liquid hf | H48: Lat. Heat hfg | I48: Total STM Heat hg
B49: 43 | C49: 57.7 | D49: 290.15 | E49: 0.017359 | F49: 7.442 | G49: 259.62 | H49: 917.4 | I49: 1177.1
B50: 44 | C50: 58.7 | D50: 291.26 | E50: 0.01737 | F50: 7.323 | G50: 260.76 | H50: 916.6 | I50: 1177.36
B51: 45 | C51: 59.7 | D51: 292.36 | E51: 0.01738 | F51: 7.207 | G51: 261.89 | H51: 915.8 | I51: 1177.69
B52: 46 | C52: 60.7 | D52: 293.45 | E52: 0.017391 | F52: 7.095 | G52: 263 | H52: 915 | I52: 1178
B53: 47 | C53: 61.7 | D53: 294.52 | E53: 0.017401 | F53: 6.987 | G53: 264.1 | H53: 914.2 | I53: 1178.3
B54: 48 | C54: 62.7 | D54: 295.58 | E54: 0.017411 | F54: 6.882 | G54: 265.18 | H54: 913.4 | I54: 1178.58
B55: 49 | C55: 63.7 | D55: 296.62 | E55: 0.017421 | F55: 6.78 | G55: 266.26 | H55: 912.7 | I55: 1178.9
B56: 50 | C56: 64.7 | D56: 297.65 | E56: 0.017431 | F56: 6.682 | G56: 267.31 | H56: 911.9 | I56: 1179.21
B57: 51 | C57: 65.7 | D57: 298.67 | E57: 0.017441 | F57: 6.586 | G57: 268.36 | H57: 911.1 | I57: 1179.46
B58: 52 | C58: 66.7 | D58: 299.68 | E58: 0.017451 | F58: 6.493 | G58: 269.39 | H58: 910.4 | I58: 1179.79
B59: 53 | C59: 67.7 | D59: 300.67 | E59: 0.017461 | F59: 6.402 | G59: 270.42 | H59: 909.6 | I59: 1180.02
B60: 54 | C60: 68.7 | D60: 301.65 | E60: 0.01747 | F60: 6.314 | G60: 271.43 | H60: 908.9 | I60: 1180.33
B61: 55 | C61: 69.7 | D61: 302.62 | E61: 0.01748 | F61: 6.229 | G61: 272.42 | H61: 908.2 | I61: 1180.62
B62: 56 | C62: 70.7 | D62: 303.58 | E62: 0.01749 | F62: 6.146 | G62: 273.41 | H62: 907.4 | I62: 1180.81
B63: 57 | C63: 71.7 | D63: 304.53 | E63: 0.017499 | F63: 6.065 | G63: 274.39 | H63: 906.7 | I63: 1181.09
B64: 58 | C64: 72.7 | D64: 305.47 | E64: 0.017509 | F64: 5.987 | G64: 275.35 | H64: 906 | I64: 1181.35
B65: 59 | C65: 73.7 | D65: 306.4 | E65: 0.017518 | F65: 5.91 | G65: 276.31 | H65: 905.3 | I65: 1181.61
B66: 60 | C66: 74.7 | D66: 307.32 | E66: 0.017528 | F66: 5.835 | G66: 277.26 | H66: 904.6 | I66: =SUM(G66:H66) -> 1181.86
B67: 61 | C67: 75.7 | D67: 308.23 | E67: 0.017532 | F67: 5.763 | G67: 278.19 | H67: 903.9 | I67: 1182.09
B68: 62 | C68: 76.7 | D68: 309.12 | E68: 0.017541 | F68: 5.692 | G68: 279.12 | H68: 903.2 | I68: 1182.32
B69: 63 | C69: 77.7 | D69: 310.01 | E69: 0.01755 | F69: 5.623 | G69: 280.04 | H69: 902.5 | I69: 1182.6
B70: 64 | C70: 78.7 | D70: 310.89 | E70: 0.01756 | F70: 5.555 | G70: 280.94 | H70: 901.9 | I70: 1182.84
B71: 65 | C71: 79.7 | D71: 311.76 | E71: 0.017569 | F71: 5.49 | G71: 281.84 | H71: 901.2 | I71: 1183.04
B72: 66 | C72: 80.7 | D72: 312.63 | E72: 0.017578 | F72: 5.425 | G72: 282.73 | H72: 900.5 | I72: 1183.3
B73: 67 | C73: 81.7 | D73: 313.48 | E73: 0.017587 | F73: 5.363 | G73: 283.62 | H73: 899.9 | I73: =SUM(G73:H73) -> 1183.52
B74: 68 | C74: 82.7 | D74: 314.33 | E74: 0.017596 | F74: 5.302 | G74: 284.49 | H74: 899.2 | I74: 1183.69
B75: 69 | C75: 83.7 | D75: 315.16 | E75: 0.017605 | F75: 5.242 | G75: 285.36 | H75: 898.6 | I75: 1183.9
B76: 70 | C76: 84.7 | D76: 315.99 | E76: 0.017614 | F76: 5.184 | G76: 286.21 | H76: 897.9 | I76: 1184.11
B77: 71 | C77: 85.7 | D77: 316.82 | E77: 0.017623 | F77: 5.126 | G77: 287.06 | H77: 897.3 | I77: 1184.3
B78: 72 | C78: 86.7 | D78: 317.63 | E78: 0.017631 | F78: 5.071 | G78: 287.91 | H78: 896.6 | I78: 1184.51
B79: 73 | C79: 87.7 | D79: 318.44 | E79: 0.01764 | F79: 5.016 | G79: 288.74 | H79: 896 | I79: 1184.74
B80: 74 | C80: 88.7 | D80: 319.24 | E80: 0.017649 | F80: 4.963 | G80: 289.57 | H80: 895.4 | I80: 1184.9
B81: 75 | C81: 89.7 | D81: 320.03 | E81: 0.017657 | F81: 4.911 | G81: 290.39 | H81: 894.8 | I81: 1185.1
B82: 76 | C82: 90.7 | D82: 320.81 | E82: 0.017666 | F82: 4.86 | G82: 291.2 | H82: 894.1 | I82: 1185.3
B83: 77 | C83: 91.7 | D83: 321.59 | E83: 0.017674 | F83: 4.81 | G83: 292.01 | H83: 893.5 | I83: 1185.51
B84: 78 | C84: 92.7 | D84: 322.37 | E84: 0.017683 | F84: 4.761 | G84: 292.81 | H84: 892.9 | I84: 1185.71
B85: 79 | C85: 93.7 | D85: 323.13 | E85: 0.017691 | F85: 4.713 | G85: 293.6 | H85: 892.3 | I85: 1185.9
B86: 80 | C86: 94.7 | D86: 323.89 | E86: 0.0177 | F86: 4.666 | G86: 294.39 | H86: 891.7 | I86: 1186.09
B87: 81 | C87: 95.7 | D87: 324.64 | E87: 0.017708 | F87: 4.62 | G87: 295.17 | H87: 891.1 | I87: 1186.27
B88: 82 | C88: 96.7 | D88: 325.39 | E88: 0.017716 | F88: 4.575 | G88: 295.95 | H88: 890.5 | I88: 1186.45
B89: 83 | C89: 97.7 | D89: 326.13 | E89: 0.017724 | F89: 4.531 | G89: 296.71 | H89: 889.9 | I89: 1186.61
B90: 84 | C90: 98.7 | D90: 326.86 | E90: 0.017732 | F90: 4.487 | G90: 297.48 | H90: 889.3 | I90: 1186.78
B91: 85 | C91: 99.7 | D91: 327.59 | E91: 0.01774 | F91: 4.445 | G91: 298.23 | H91: 888.8 | I91: 1187.03
B92: Pressure | D92: Temperature | E92: Specific Volume | G92: Heat -BTU/lb | H92: Enthalpy - BTU/lb
B93: Gage psig | C93: Absolute psia | D93: Saturation Deg. F. | E93: Water vf ft3/lb | F93: Steam vg ft3/lb | G93: Liquid hf | H93: Lat. Heat hfg | I93: Total STM Heat hg
B94: 86 | C94: 100.7 | D94: 328.31 | E94: 0.017748 | F94: 4.401 | G94: 298.98 | H94: 888.2 | I94: 1187.18
B95: 87 | C95: 101.7 | D95: 329.03 | E95: 0.017756 | F95: 4.36 | G95: 299.73 | H95: 887.6 | I95: 1187.33
B96: 88 | C96: 102.7 | D96: 329.74 | E96: 0.017764 | F96: 4.32 | G96: 300.47 | H96: 887 | I96: 1187.47
B97: 89 | C97: 103.7 | D97: 330.45 | E97: 0.017772 | F97: 4.28 | G97: 301.2 | H97: 886.5 | I97: 1187.7
B98: 90 | C98: 104.7 | D98: 331.15 | E98: 0.01778 | F98: 4.242 | G98: 301.93 | H98: 885.9 | I98: 1187.83
B99: 91 | C99: 105.7 | D99: 331.84 | E99: 0.017788 | F99: 4.204 | G99: 302.66 | H99: 885.4 | I99: 1188
B100: 92 | C100: 106.7 | D100: 332.53 | E100: 0.017796 | F100: 4.167 | G100: 303.37 | H100: 884.8 | I100: 1188.17
B101: 93 | C101: 107.7 | D101: 333.22 | E101: 0.017804 | F101: 4.13 | G101: 304.09 | H101: 884.2 | I101: 1188.29
B102: 94 | C102: 108.7 | D102: 333.9 | E102: 0.017811 | F102: 4.094 | G102: 304.8 | H102: 883.7 | I102: 1188.5
B103: 95 | C103: 109.7 | D103: 334.57 | E103: 0.017819 | F103: 4.059 | G103: 305.5 | H103: 883.1 | I103: 1188.6
B104: 96 | C104: 110.7 | D104: 335.24 | E104: 0.017827 | F104: 4.024 | G104: 306.2 | H104: 882.6 | I104: 1188.8
B105: 97 | C105: 111.7 | D105: 335.91 | E105: 0.017834 | F105: 3.99 | G105: 306.89 | H105: 882.1 | I105: 1188.9
B106: 98 | C106: 112.7 | D106: 336.57 | E106: 0.017842 | F106: 3.957 | G106: 307.58 | H106: 881.5 | I106: 1189.08
B107: 99 | C107: 113.7 | D107: 337.22 | E107: 0.017849 | F107: 3.924 | G107: 308.26 | H107: 881 | I107: 1189.2
B108: 100 | C108: 114.7 | D108: 337.87 | E108: 0.017857 | F108: 3.891 | G108: 308.94 | H108: 880.4 | I108: 1189.4
B109: 101 | C109: 115.7 | D109: 338.52 | E109: 0.017864 | F109: 3.859 | G109: 309.62 | H109: 879.9 | I109: 1189.52
B110: 102 | C110: 116.7 | D110: 339.16 | E110: 0.017872 | F110: 3.828 | G110: 310.29 | H110: 879.4 | I110: 1189.69
B111: 103 | C111: 117.7 | D111: 339.8 | E111: 0.017879 | F111: 3.797 | G111: 310.96 | H111: 878.9 | I111: 1189.8
B112: 104 | C112: 118.7 | D112: 340.43 | E112: 0.017886 | F112: 3.767 | G112: 311.62 | H112: 878.3 | I112: 1190
B113: 105 | C113: 119.7 | D113: 341.06 | E113: 0.017894 | F113: 3.737 | G113: 312.28 | H113: 877.8 | I113: 1190.08
B114: 106 | C114: 120.7 | D114: 341.69 | E114: 0.017901 | F114: 3.708 | G114: 312.93 | H114: 877.3 | I114: 1190.23
B115: 107 | C115: 121.7 | D115: 342.31 | E115: 0.017908 | F115: 3.679 | G115: 313.58 | H115: 876.8 | I115: 1190.38
B116: 108 | C116: 122.7 | D116: 342.93 | E116: 0.017915 | F116: 3.65 | G116: 314.23 | H116: 876.3 | I116: 1190.53
B117: 109 | C117: 123.7 | D117: 343.54 | E117: 0.017922 | F117: 3.622 | G117: 314.87 | H117: 875.8 | I117: 1190.6
B118: 110 | C118: 124.7 | D118: 344.15 | E118: 0.01793 | F118: 3.595 | G118: 315.51 | H118: 875.3 | I118: 1190.81
B119: 111 | C119: 125.7 | D119: 344.76 | E119: 0.017937 | F119: 3.568 | G119: 316.14 | H119: 874.8 | I119: 1190.94
B120: 112 | C120: 126.7 | D120: 345.36 | E120: 0.017944 | F120: 3.541 | G120: 316.77 | H120: 874.3 | I120: 1191
B121: 113 | C121: 127.7 | D121: 345.95 | E121: 0.017951 | F121: 3.514 | G121: 317.4 | H121: 873.8 | I121: 1191.2
B122: 114 | C122: 128.7 | D122: 346.55 | E122: 0.017958 | F122: 3.489 | G122: 318.02 | H122: 873.3 | I122: 1191.32
B123: 115 | C123: 129.7 | D123: 347.14 | E123: 0.017965 | F123: 3.463 | G123: 318.64 | H123: 872.8 | I123: 1191.4
B124: 116 | C124: 130.7 | D124: 347.73 | E124: 0.017972 | F124: 3.438 | G124: 319.26 | H124: 872.3 | I124: 1191.5
B125: 117 | C125: 131.7 | D125: 348.31 | E125: 0.017979 | F125: 3.413 | G125: 319.87 | H125: 871.8 | I125: 1191.7
B126: 118 | C126: 132.7 | D126: 348.89 | E126: 0.017986 | F126: 3.388 | G126: 320.48 | H126: 871.3 | I126: 1191.8
B127: 119 | C127: 133.7 | D127: 349.47 | E127: 0.017993 | F127: 3.364 | G127: 321.09 | H127: 870.8 | I127: 1191.9
B128: 120 | C128: 134.7 | D128: 350.04 | E128: 0.018 | F128: 3.341 | G128: 321.69 | H128: 870.3 | I128: 1192
B129: 121 | C129: 135.7 | D129: 350.61 | E129: 0.018006 | F129: 3.317 | G129: 322.29 | H129: 869.9 | I129: 1192.1
B130: 122 | C130: 136.7 | D130: 351.18 | E130: 0.018013 | F130: 3.294 | G130: 322.88 | H130: 869.4 | I130: 1192.28
B131: 123 | C131: 137.7 | D131: 351.74 | E131: 0.01802 | F131: 3.271 | G131: 323.48 | H131: 868.9 | I131: 1192.38
B132: 124 | C132: 138.7 | D132: 352.3 | E132: 0.018027 | F132: 3.249 | G132: 324.07 | H132: 868.4 | I132: 1192.47
B133: 125 | C133: 139.7 | D133: 352.86 | E133: 0.018033 | F133: 3.227 | G133: 324.65 | H133: 868 | I133: 1192.6
B134: 126 | C134: 140.7 | D134: 353.41 | E134: 0.01804 | F134: 3.205 | G134: 325.23 | H134: 867.5 | I134: 1192.73
B135: 127 | C135: 141.7 | D135: 353.96 | E135: 0.018047 | F135: 3.183 | G135: 325.81 | H135: 867 | I135: 1192.81
B136: 128 | C136: 142.7 | D136: 354.51 | E136: 0.018053 | F136: 3.162 | G136: 326.39 | H136: 866.6 | I136: 1192.9
B137: Pressure | D137: Temperature | E137: Specific Volume | G137: Heat -BTU/lb | H137: Enthalpy - BTU/lb
B138: Gage psig | C138: Absolute psia | D138: Saturation Deg. F. | E138: Water vf ft3/lb | F138: Steam vg ft3/lb | G138: Liquid hf | H138: Lat. Heat hfg | I138: Total STM Heat hg
B139: 129 | C139: 143.7 | D139: 355.05 | E139: 0.01806 | F139: 3.141 | G139: 326.96 | H139: 866.1 | I139: 1193.06
B140: 130 | C140: 144.7 | D140: 355.6 | E140: 0.018067 | F140: 3.12 | G140: 327.54 | H140: 865.6 | I140: 1193.2
B141: 131 | C141: 145.7 | D141: 356.13 | E141: 0.018073 | F141: 3.1 | G141: 328.1 | H141: 865.2 | I141: =SUM(G141:H141) -> 1193.3
B142: 132 | C142: 146.7 | D142: 356.67 | E142: 0.01808 | F142: 3.08 | G142: 328.67 | H142: 864.7 | I142: 1193.37
B143: 133 | C143: 147.7 | D143: 357.2 | E143: 0.018086 | F143: 3.06 | G143: 329.23 | H143: 864.2 | I143: 1193.5
B144: 134 | C144: 148.7 | D144: 357.73 | E144: 0.018093 | F144: 3.04 | G144: 329.79 | H144: 863.8 | I144: 1193.59
B145: 135 | C145: 149.7 | D145: 358.26 | E145: 0.018099 | F145: 3.021 | G145: 330.35 | H145: 863.3 | I145: 1193.65
B146: 136 | C146: 150.7 | D146: 358.79 | E146: 0.018106 | F146: 3.002 | G146: 330.9 | H146: 862.9 | I146: 1193.8
B147: 137 | C147: 151.7 | D147: 359.31 | E147: 0.018112 | F147: 2.983 | G147: 331.45 | H147: 862.4 | I147: 1193.85
B148: 138 | C148: 152.7 | D148: 359.83 | E148: 0.018119 | F148: 2.964 | G148: 332 | H148: 862 | I148: 1194
B149: 139 | C149: 153.7 | D149: 360.34 | E149: 0.018125 | F149: 2.946 | G149: 332.54 | H149: 861.5 | I149: 1194.1
B150: 140 | C150: 154.7 | D150: 360.86 | E150: 0.018132 | F150: 2.928 | G150: 333.09 | H150: 861.1 | I150: 1194.19
B151: 141 | C151: 155.7 | D151: 361.37 | E151: 0.018138 | F151: 2.91 | G151: 333.63 | H151: 860.7 | I151: 1194.33
B152: 142 | C152: 156.7 | D152: 361.88 | E152: 0.018144 | F152: 2.892 | G152: 334.17 | H152: 860.2 | I152: 1194.37
B153: 143 | C153: 157.7 | D153: 362.38 | E153: 0.018151 | F153: 2.874 | G153: 334.7 | H153: 859.8 | I153: 1194.5
B154: 144 | C154: 158.7 | D154: 362.89 | E154: 0.018157 | F154: 2.857 | G154: 335.23 | H154: 859.3 | I154: 1194.6
B155: 145 | C155: 159.7 | D155: 363.39 | E155: 0.018163 | F155: 2.84 | G155: 335.77 | H155: 858.9 | I155: 1194.67
B156: 146 | C156: 160.7 | D156: 363.89 | E156: 0.018169 | F156: 2.823 | G156: 336.29 | H156: 858.5 | I156: 1194.79
B157: 147 | C157: 161.7 | D157: 364.38 | E157: 0.018176 | F157: 2.806 | G157: 336.82 | H157: 858 | I157: 1194.9
B158: 148 | C158: 162.7 | D158: 364.88 | E158: 0.018182 | F158: 2.79 | G158: 337.34 | H158: 857.6 | I158: 1194.94
B159: 149 | C159: 163.7 | D159: 365.37 | E159: 0.018188 | F159: 2.773 | G159: 337.86 | H159: 857.2 | I159: 1195
B160: 150 | C160: 164.7 | D160: 365.86 | E160: 0.018194 | F160: 2.757 | G160: 338.38 | H160: 856.7 | I160: 1195.08
B161: 152 | C161: 166.7 | D161: 366.83 | E161: 0.018207 | F161: 2.726 | G161: 339.41 | H161: 855.9 | I161: 1195.31
B162: 154 | C162: 168.7 | D162: 367.79 | E162: 0.018219 | F162: 2.695 | G162: 340.43 | H162: 855.1 | I162: 1195.53
B163: 156 | C163: 170.7 | D163: 368.74 | E163: 0.018231 | F163: 2.664 | G163: 341.44 | H163: 854.2 | I163: 1195.7
B164: 158 | C164: 172.7 | D164: 369.69 | E164: 0.018243 | F164: 2.635 | G164: 342.45 | H164: 853.4 | I164: 1195.8
B165: 160 | C165: 174.7 | D165: 370.62 | E165: 0.018255 | F165: 2.606 | G165: 343.44 | H165: 852.5 | I165: 1196
B166: 162 | C166: 176.7 | D166: 371.55 | E166: 0.018267 | F166: 2.577 | G166: 344.43 | H166: 851.7 | I166: 1196.2
B167: 164 | C167: 178.7 | D167: 372.47 | E167: 0.018279 | F167: 2.55 | G167: 345.41 | H167: 850.9 | I167: 1196.31
B168: 166 | C168: 180.7 | D168: 373.38 | E168: 0.018291 | F168: 2.523 | G168: 346.38 | H168: 850.1 | I168: 1196.48
B169: 168 | C169: 182.7 | D169: 374.29 | E169: 0.018303 | F169: 2.496 | G169: 347.34 | H169: 849.3 | I169: 1196.64
B170: 170 | C170: 184.7 | D170: 375.18 | E170: 0.018314 | F170: 2.47 | G170: 348.3 | H170: 848.5 | I170: 1196.8
B171: 172 | C171: 186.7 | D171: 376.07 | E171: 0.018326 | F171: 2.445 | G171: 349.24 | H171: 847.7 | I171: 1196.94
B172: 174 | C172: 188.7 | D172: 376.95 | E172: 0.018338 | F172: 2.42 | G172: 350.18 | H172: 846.9 | I172: 1197.08
B173: 175 | C173: 189.7 | D173: 377.51 | E173: 0.018344 | F173: 2.413 | G173: 350.8 | H173: 846.5 | I173: 1197.2
B174: 176 | C174: 190.7 | D174: 377.82 | E174: 0.018349 | F174: 2.395 | G174: 351.12 | H174: 846.1 | I174: 1197.2
B175: 178 | C175: 192.7 | D175: 378.69 | E175: 0.018361 | F175: 2.371 | G175: 352.04 | H175: 845.3 | I175: 1197.4
B176: 180 | C176: 194.7 | D176: 379.55 | E176: 0.018372 | F176: 2.348 | G176: 352.96 | H176: 844.6 | I176: 1197.5
B177: 182 | C177: 196.7 | D177: 380.4 | E177: 0.018383 | F177: 2.325 | G177: 353.87 | H177: 843.8 | I177: 1197.67
B178: 184 | C178: 198.7 | D178: 381.25 | E178: 0.018395 | F178: 2.302 | G178: 354.78 | H178: 843 | I178: 1197.78
B179: 186 | C179: 200.7 | D179: 382.09 | E179: 0.018406 | F179: 2.28 | G179: 355.68 | H179: 842.9 | I179: 1198.58
B180: 188 | C180: 202.7 | D180: 382.92 | E180: 0.018417 | F180: 2.258 | G180: 356.57 | H180: 842.2 | I180: 1198.7
B181: 190 | C181: 204.7 | D181: 383.75 | E181: 0.018428 | F181: 2.237 | G181: 357.45 | H181: 841.4 | I181: 1198.85
B182: Pressure | D182: Temperature | E182: Specific Volume | G182: Heat -BTU/lb | H182: Enthalpy - BTU/lb
B183: Gage psig | C183: Absolute psia | D183: Saturation Deg. F. | E183: Water vf ft3/lb | F183: Steam vg ft3/lb | G183: Liquid hf | H183: Lat. Heat hfg | I183: Total STM Heat hg
B184: 192 | C184: 206.7 | D184: 384.57 | E184: 0.018439 | F184: 2.216 | G184: 358.33 | H184: 840.6 | I184: 1199
B185: 194 | C185: 208.7 | D185: 385.38 | E185: 0.01845 | F185: 2.196 | G185: 359.21 | H185: 839.9 | I185: 1199.11
B186: 196 | C186: 210.7 | D186: 386.19 | E186: 0.018461 | F186: 2.175 | G186: 360.07 | H186: 839.1 | I186: 1199.17
B187: 198 | C187: 212.7 | D187: 386.99 | E187: 0.018472 | F187: 2.156 | G187: 360.94 | H187: 838.4 | I187: 1199.34
B188: 200 | C188: 214.7 | D188: 387.79 | E188: 0.018483 | F188: 2.136 | G188: 361.79 | H188: 837.7 | I188: 1199.4
B189: 205 | C189: 219.7 | D189: 389.75 | E189: 0.01851 | F189: 2.089 | G189: 363.91 | H189: 835.8 | I189: 1199.71
B190: 210 | C190: 224.7 | D190: 391.68 | E190: 0.018537 | F190: 2.044 | G190: 365.99 | H190: 834 | I190: 1199.99
B191: 215 | C191: 229.7 | D191: 393.58 | E191: 0.018563 | F191: 2.001 | G191: 368.03 | H191: 832.2 | I191: 1200.23
B192: 220 | C192: 234.7 | D192: 395.44 | E192: 0.01859 | F192: 1.96 | G192: 370.05 | H192: 830.4 | I192: 1200.45
B193: 225 | C193: 239.7 | D193: 397.28 | E193: 0.018616 | F193: 1.92 | G193: 372.03 | H193: 828.7 | I193: 1200.73
B194: 230 | C194: 244.7 | D194: 399.08 | E194: 0.018641 | F194: 1.882 | G194: 373.99 | H194: 826.9 | I194: 1200.89
B195: 235 | C195: 249.7 | D195: 400.86 | E195: 0.018667 | F195: 1.845 | G195: 375.92 | H195: 825.2 | I195: 1201.12
B196: 240 | C196: 254.7 | D196: 402.61 | E196: 0.018692 | F196: 1.81 | G196: 377.82 | H196: 823.5 | I196: 1201.32
B197: 245 | C197: 259.7 | D197: 404.33 | E197: 0.018717 | F197: 1.776 | G197: 379.69 | H197: 821.8 | I197: 1201.49
B198: 250 | C198: 264.7 | D198: 406.03 | E198: 0.018742 | F198: 1.743 | G198: 381.54 | H198: 820.2 | I198: 1201.74
B199: 255 | C199: 269.7 | D199: 407.7 | E199: 0.018767 | F199: 1.711 | G199: 383.36 | H199: 818.5 | I199: 1201.86
B200: 260 | C200: 274.7 | D200: 409.35 | E200: 0.018791 | F200: 1.681 | G200: 385.16 | H200: 816.9 | I200: 1202.06
... 40 more rows

Sheet Explanation--Emission Formula
A1: This formula is from Steam Leak Est rev 4 2 tab - Column K
A2: =(((VLOOKUP($B12,'Steam water pres table May-2009'!$B$4:$I$240,8,FALSE)*$G12)/1000000)*(VLOOKUP($D$8,'CO2 Conversion Factors'!$A$3:$C$23,3,FALSE))*24)*I12
A4: Part 1
A5: =((VLOOKUP($B12,'Steam water pres table May-2009'!$B$4:$I$240,8,FALSE)*$G12)/1000000)
A6: $B12 is the Pressure in column "B" found on Steam Leak Est rev 4 2 tab
A7: $G12 is the Steam Loss (pph) found on Steam Leak Est rev 4 2 tab
A8: Based on the pressure of the specific row, VLOOKUP finds the match on the Steam water pres table May-2009 tab in column "B" and uses the "Total STM Heat hg" data in column "I". The "Total STM Heat hg" is then multiplied by the Steam Loss (pph). This number is then divided by 1,000,000.
A10: Part 2
A11: =VLOOKUP($D$8,'CO2 Conversion Factors'!$A$3:$C$23,3,FALSE)
A12: $D$8 is the drop down box for the fuel type
A13: Based on the Fuel type picked in $D$8, VLOOKUP finds the match on the CO2 Conversion Factors tab in column "A" and uses the "Conversion Factor" in column "C"
A14: This Conversion Factor changes based on the fuel type.
A16: Part 3
A17: (PART 1 * PART 2)*24)*I12
A18: The original formula (Part 1 multiplied by Part 2) is multiplied by 24 to represent 1 day. This number is then multiplied by the Days / Year (column "I") for that specific pressure ($B$12)
A21: Mathematical examples from Steam Leak Est rev 4 2
A23: For Cell K12: If fuel type = natural gas, Conversion Factor = 117.08. If pressure=4, total STM Heat hg = 1155.13. Steam loss = 6.7. Days / Year =150.00
A24: (((Total STM Heat hg * Steam Loss (pph))/1,000,000)* Conversion Factor)*24 hrs)*Days / Year
A25: Therefore: ((((1155.13*6.68382)/1000000)*117.080)*24)*150.00
A26: =((((1155.13*6.68382)/1000000)*117.08)*24)*150 -> 3254.174392
A29: For Cell K30: If fuel type = black liquor, Conversion Factor = 221.605. If pressure=30, total STM Heat hg = 1172.20. Steam loss = 16.0. Days / Year = 365.
A30: ((((Total STM Heat hg * Steam Loss (pph))/1,000,000)* Conversion Factor)*24 hrs)*Days / Year
A31: Therefore: ((((1172.20*16.0)/1000000)*221.605)*24)*365
A32: =((((1172.2*15.97882)/1000000)*221.605)*24)*365 -> 36360.51976
A34: Copy Rights: Not to be copied or distributed without specific permission from Inveno Engineering LLC; kelly.paffel@invenoeng.com

Sheet Total
